Cogmind - Beta 15 @@@ ROGUE MODE // 2025.06.26 @ 12:02:29 Player: Sunvar Result: Destroyed by Executioner with Helical Railgun Performance ------------- Evolutions (9) 4500 Regions Visited (34) 6800 Robots Destroyed (114) 570 Value Destroyed (2901) 2901 Prototype IDs (72) 1440 Alien Tech Used (12) 2400 Bonus (13976) 13976 TOTAL SCORE: 32587 Bonus ------- Follower Combat Kills 1672 Installed LC Capacitor 1000 Network Hubs Disabled 600 Met Data Miner 300 Met Zhirov 300 Met Warlord at Base 500 MAIN.C Attacked Warlord 500 Built Enhanced Grunts 300 A7 Reached Mainframe 300 Met R17 at Cetus 500 Found Hidden Lab 3000 Used Core Reset Matrix 3000 Destroyed MAIN.C Shell 5000 Friendly Fire -2996 Cogmind --------- Core Integrity 0/1600 Matter 300/300 Energy 99/100 System Corruption 10% Temperature Warm (101) Movement Core (50) Location -1/Command Parts ------- > --- POWER (2) -------- (None) > --- PROPULSION (8) --- (None) > --- UTILITY (11) ----- Spectral Analyzer Experimental Signal Interpreter Graphene Brace > --- WEAPON (4) ------- (None) > --- INVENTORY (5) ---- ECM Suite Peak State ------------ > --- POWER ------------ Micro Antimatter Reactor Matter Drive > --- PROPULSION ------- Field Propulsion Array Electron Diverter Improved Diametric Drive Cooled Impulse Thruster Impulse Thruster Array Experimental Q-thruster > --- UTILITY ---------- Experimental Cooling System Medium Storage Unit Spectral Analyzer Experimental Signal Interpreter Advanced Reaction Control System Graphene Brace System Mapper Deep Network Scanner Microwarp Drive > --- WEAPON ----------- Tachyon Dispersion Ray Ionic Axe > --- INVENTORY -------- Experimental Energy Well Advanced Transmission Jammer ECM Suite Experimental Powered Armor High-powered Transdimensional Reconstructor Terrabomb L-Cannon [Rating: 217] Favorites ----------- Power Micro Nuclear Core Engine Light Ion Engine Power Core Micro Nuclear Core Reactor Micro Antimatter Reactor Propulsion Light Treads Treads Light Treads Leg Aluminum Leg Flight Unit Improved Flight Unit Utility Improved Hacking Suite Device Improved Sensor Array Storage Medium Storage Unit Processor Advanced Signal Interpreter Hackware Improved Hacking Suite Protection Centrium Medium Armor Plating Artifact LC Capacitor Weapon Ionic Axe Energy Gun Medium Laser Energy Cannon Matter Neutralizer Ballistic Gun Assault Rifle Ballistic Cannon Assault Cannon Launcher Heavy Rocket Launcher Special Weapon Mining Laser Slashing Weapon Ionic Axe Special Melee Weapon Improved Datajack Build | -11 -10 -10 -9 -8 -7 -7 -7 -7 -6 -6 -6 -6 -6 -6 -6 -6 -5 -5 -5 -5 -4 -4 -4 -4 -4 -3 -3 -3 -3 -2 -2 -2 -1 -1 ------- Run | Yrd Mat Min Mat Mat Fac Low Low Dat Pro Fac Was Fac Ext Cet Arc Hub Fac Upp Upp Zhi Pro Fac Upp Upp War Pro Res Arm Lab Res Tes Sec Acc Com Slots Evolved 18 | . . . 2 2 2 . . . . 2 . . . . . . 2 . . . . 2 . . . . 2 . . 2 . . 2 . Power 1 | . . . . . . . . . . . . . . . . . 1 . . . . . . . . . . . . . . . . . Propulsion 6 | . . . 1 1 . . . . . 1 . . . . . . 1 . . . . 1 . . . . 1 . . . . . . . Utility 9 | . . . 1 1 2 . . . . 1 . . . . . . . . . . . 1 . . . . 1 . . 2 . . . . Weapon 2 | . . . . . . . . . . . . . . . . . . . . . . . . . . . . . . . . . 2 . Parts Attached 160 | . 12 2 24 27 13 . . . . 4 . 9 2 5 1 . 7 . . 5 . 8 . 1 6 1 4 11 5 3 1 5 3 1 Power 18 | . 1 1 3 1 1 . . . . . . 2 . . . . 2 . . 1 . 1 . . . . . 2 . 2 . 1 . . Engine 6 | . 1 1 3 . . . . . . . . 1 . . . . . . . . . . . . . . . . . . . . . . Core 7 | . . . . 1 1 . . . . . . 1 . . . . 2 . . . . 1 . . . . . 1 . . . . . . Reactor 5 | . . . . . . . . . . . . . . . . . . . . 1 . . . . . . . 1 . 2 . 1 . . Propulsion 40 | . 3 . 9 15 1 . . . . . . 1 . . . . 1 . . 1 . 2 . . 2 . 3 1 . . . 1 . . Treads 20 | . 2 . 8 10 . . . . . . . . . . . . . . . . . . . . . . . . . . . . . . Leg 2 | . 1 . . . . . . . . . . . . . . . . . . 1 . . . . . . . . . . . . . . Wheel . | . . . . . . . . . . . . . . . . . . . . . . . . . . . . . . . . . . . Hover . | . . . . . . . . . . . . . . . . . . . . . . . . . . . . . . . . . . . Flight 18 | . . . 1 5 1 . . . . . . 1 . . . . 1 . . . . 2 . . 2 . 3 1 . . . 1 . . Utility 66 | . 4 . 3 5 9 . . . . 2 . 4 1 4 1 . 2 . . 3 . 3 . 1 4 1 1 7 3 1 1 3 3 . Device 26 | . 3 . 1 3 3 . . . . . . . 1 . . . 1 . . . . 1 . 1 2 1 . 5 . 1 1 . 2 . Storage 6 | . 1 . 1 . . . . . . . . . . . . . . . . 2 . 1 . . . . . . . . . 1 . . Processor 8 | . . . . . 2 . . . . 1 . 1 . . . . . . . . . . . . 1 . 1 1 . . . . 1 . Hackware 16 | . . . . 1 3 . . . . 1 . 3 . 1 1 . 1 . . 1 . 1 . . 1 . . 1 1 . . . . . Protection 7 | . . . 1 1 1 . . . . . . . . 3 . . . . . . . . . . . . . . 1 . . . . . Artifact 3 | . . . . . . . . . . . . . . . . . . . . . . . . . . . . . 1 . . 2 . . Weapon 36 | . 4 1 9 6 2 . . . . 2 . 2 1 1 . . 2 . . . . 2 . . . . . 1 2 . . . . 1 Energy Gun 8 | . 1 . 4 1 . . . . . . . . . . . . 1 . . . . . . . . . . . 1 . . . . . Energy Cannon 4 | . . . 1 . . . . . . . . . 1 . . . . . . . . 1 . . . . . . . . . . . 1 Ballistic Gun 9 | . 1 . 2 3 . . . . . 1 . . . 1 . . . . . . . 1 . . . . . . . . . . . . Ballistic Cannon 3 | . 1 . 1 1 . . . . . . . . . . . . . . . . . . . . . . . . . . . . . . Launcher 5 | . 1 . 1 . 1 . . . . 1 . . . . . . . . . . . . . . . . . 1 . . . . . . Special Weapon 2 | . . 1 . . . . . . . . . . . . . . . . . . . . . . . . . . 1 . . . . . Impact Weapon . | . . . . . . . . . . . . . . . . . . . . . . . . . . . . . . . . . . . Slashing Weapon 4 | . . . . 1 1 . . . . . . 1 . . . . 1 . . . . . . . . . . . . . . . . . Piercing Weapon . | . . . . . . . . . . . . . . . . . . . . . . . . . . . . . . . . . . . Special Melee Weapon 1 | . . . . . . . . . . . . 1 . . . . . . . . . . . . . . . . . . . . . . Unidentified Prototypes 46 | . . . 5 2 1 . . . . 1 . . . 3 . . 2 . . 5 . 2 . . 5 . 1 10 6 . 2 1 . . Parts Lost 33 | . . . 2 5 . 1 . . . 1 . . . . . 3 . . . . . . . . . . 1 . . . 1 2 . 17 Power 2 | . . . . . . 1 . . . . . . . . . . . . . . . . . . . . . . . . . . . 1 Propulsion 13 | . . . 1 3 . . . . . . . . . . . 2 . . . . . . . . . . . . . . . 1 . 6 Utility 11 | . . . 1 1 . . . . . . . . . . . . . . . . . . . . . . 1 . . . . 1 . 7 Weapon 7 | . . . . 1 . . . . . 1 . . . . . 1 . . . . . . . . . . . . . . 1 . . 3 Highest Loss Streak 17 | . . . 1 3 . 1 . . . 1 . . . . . 2 . . . . . . . . . . 1 . . . 1 2 . 17 To Critical Strikes 1 | . . . . 1 . . . . . . . . . . . . . . . . . . . . . . . . . . . . . . Average Backups 8 | 6 9 10 12 14 5 4 5 5 5 4 5 4 5 5 4 4 3 4 4 4 4 8 9 8 9 10 9 9 9 9 9 8 7 5 Power 1 | 1 1 2 1 1 . . 1 1 1 1 1 1 1 1 1 1 . 1 1 . . . 1 . . . . . . 1 . . . . Propulsion 1 | 4 2 1 1 4 1 1 1 1 1 . . . 1 1 1 . . 1 1 1 1 1 2 1 1 1 1 2 1 . . . . . Utility 3 | . . 1 3 6 2 2 2 2 2 2 3 3 2 2 2 3 1 2 2 2 2 4 4 5 6 7 5 5 4 4 5 5 4 3 Weapon 2 | 1 4 6 5 2 1 1 1 1 1 1 1 . . . . . . . . . . . 1 1 1 1 1 1 2 2 1 1 1 . Tool/Special . | . . . . . . . . . . . . . . . . . . . . . . . . . . . . . . . . . . . Unused Backups 37 | . 9 . 8 2 2 . . . . 1 . 1 . . . . . . . . . 3 . . . . 1 2 2 . 3 2 . 1 Power 5 | . 1 . 1 1 . . . . . 1 . 1 . . . . . . . . . . . . . . . . . . . . . . Propulsion 8 | . 4 . 2 . 1 . . . . . . . . . . . . . . . . . . . . . . 1 . . . . . . Utility 14 | . 1 . 2 1 1 . . . . . . . . . . . . . . . . 2 . . . . 1 . 1 . 3 1 . 1 Weapon 8 | . 3 . 3 . . . . . . . . . . . . . . . . . . . . . . . . 1 1 . . . . . Tool/Special 2 | . . . . . . . . . . . . . . . . . . . . . . 1 . . . . . . . . . 1 . . Average Slot Usage (%) 93 | . 99 100 99 98 99 100 100 100 100 99 100 96 93 93 93 92 79 88 88 87 88 83 84 84 84 84 84 84 83 81 82 82 76 62 Engine 4 | . 14 14 10 4 . . . . . . . . . . . . . . . . . . . . . . . . . . . . . . Core 4 | . . . . 4 7 7 7 7 7 6 6 5 6 6 6 6 6 11 11 10 11 10 10 10 10 10 9 6 4 . . . . . Treads 10 | . 5 28 32 34 . . . . . . . . . . . . . . . . . . . . . . . . . . . . . . Leg 1 | . 22 . . . . . . . . . . . . . . . . . . . . . . . . . . . . . . . . . Flight 15 | . . . . . 30 30 30 30 30 33 33 30 26 26 26 25 19 23 23 23 23 20 21 21 21 21 23 23 23 26 26 25 24 19 Device 11 | . 13 14 17 15 8 11 7 7 7 8 6 9 11 6 6 6 10 5 5 5 6 8 5 5 5 5 9 12 10 12 13 11 12 9 Storage 5 | . 14 14 11 9 . . . . . . . . . . . . . . . . . 4 5 5 5 5 4 4 4 4 4 4 4 3 Processor 6 | . . . . . 9 15 15 15 15 13 13 13 13 13 13 13 11 11 11 11 11 10 10 10 10 10 12 14 13 8 8 8 8 8 Hackware 9 | . . . . 3 24 15 15 15 15 19 20 20 20 20 20 20 17 17 17 17 17 15 15 15 15 15 10 9 9 8 8 8 8 5 Protection 3 | . . . 4 8 . 3 7 7 6 3 6 2 1 6 6 6 . 4 5 4 4 1 5 5 4 5 3 1 2 . . . . 1 Energy Gun 3 | . 7 12 3 9 . . . . . . . . . . . . 1 . . . . . . . . . . . . . 2 4 4 2 Energy Cannon 1 | . . . 7 . . . . . . . . . . 4 . . . . . . . . 5 5 5 5 4 3 2 4 1 . . . Ballistic Gun 5 | . 14 14 4 5 7 7 7 7 7 6 6 1 . 1 6 6 5 5 5 5 5 5 . . . . . . . . . . . . Ballistic Cannon 1 | . 5 . 6 3 . . . . . . . . . . . . . . . . . . . . . . . . . . . . . . Slashing Weapon 3 | . . . . . 7 7 7 7 7 6 6 6 6 6 6 5 2 5 5 5 5 5 5 5 5 5 4 4 4 4 4 4 4 2 Peak Build Rating 217 | 6 8 8 21 36 45 45 45 45 45 52 54 64 66 77 79 79 98 98 98 104 99 113 114 115 127 128 146 155 188 203 205 217 217 217 Average Rating 63 | 6 7 8 16 24 43 43 44 45 44 50 54 58 64 71 77 78 78 97 98 98 98 107 114 114 123 126 143 151 157 201 202 203 216 185 On Entrance 90 | 6 6 8 8 20 35 45 45 45 45 45 52 54 62 64 76 79 71 98 98 98 99 91 107 114 114 126 128 146 153 185 202 204 217 217 Naked Turns . | . . . . . . . . . . . . . . . . . . . . . . . . . . . . . . . . . . . Heaviest Build 59 | 11 19 18 43 45 17 17 17 17 17 17 19 24 23 26 25 24 30 30 30 30 29 39 43 43 43 45 46 46 56 58 58 59 54 55 Greatest Support 80 | 20 40 40 60 80 20 20 20 20 20 25 25 28 28 28 28 28 36 36 36 36 36 44 44 44 48 48 56 62 59 58 61 62 62 62 Greatest Overweight (x) 1 | . . . 1 1 . . . . . . . . . . . . . . . . . . . . . . . . . . . . . 1 Average Overweight (x) . | . . . . . . . . . . . . . . . . . . . . . . . . . . . . . . . . . . . Largest Inventory Capacity 15 | 8 10 10 15 15 15 5 5 5 5 5 5 5 5 5 5 5 5 5 5 5 5 10 10 10 10 10 10 10 10 10 10 10 10 10 Average Capacity 8 | 8 9 10 12 15 5 5 5 5 5 5 5 5 5 5 5 5 5 5 5 5 5 9 10 10 10 10 10 10 10 10 10 10 10 9 Most Carried 15 | 6 10 10 15 15 9 5 5 5 5 5 5 5 5 5 5 5 5 5 5 5 5 10 10 10 10 10 10 10 10 10 10 10 10 10 Average Carried 8 | 6 9 10 12 14 4 4 5 5 5 4 5 4 5 4 4 4 3 5 5 4 5 8 10 9 9 10 9 9 9 9 9 9 10 8 Final Capacity 15 | 8 10 10 15 15 5 5 5 5 5 5 5 5 5 5 5 5 5 5 5 5 5 10 10 10 10 10 10 10 10 10 10 10 10 5 Final Carried 15 | 6 10 10 15 10 5 5 5 5 5 5 5 5 5 5 5 4 5 5 5 5 5 10 10 10 10 10 10 9 9 10 9 10 10 1 Class Distribution -------------------- 39% | Hacker-Scout 28% | Mutant 12% | Scavenger-Mutant 11% | Hacker-Ninja 5% | Hacker-Sprinter Dominant Class ---------------- Mutant | -10/Materials Mutant | -10/Mines Mutant | -9/Materials Scavenger-Mutant | -8/Materials Hacker-Sprinter | -7/Factory Hacker-Scout | -7/Lower Caves Hacker-Scout | -7/Lower Caves Hacker-Scout | -7/Data Miner Hacker-Scout | -6/Proximity Caves Hacker-Scout | -6/Factory Hacker-Scout | -6/Waste Hacker-Ninja | -6/Factory Hacker-Scout | -6/Extension Commander-Scout | -6/Cetus Hacker-Scout | -6/Archives Hacker-Scout | -6/Hub_04(d) Hacker-Scout | -5/Factory Hacker-Scout | -5/Upper Caves Hacker-Scout | -5/Upper Caves Hacker-Scout | -5/Zhirov Hacker-Scout | -4/Proximity Caves Hacker-Ninja | -4/Factory Hacker-Scout | -4/Upper Caves Hacker-Scout | -4/Upper Caves Hacker-Scout | -4/Warlord Hacker-Scout | -3/Proximity Caves Hacker-Scout | -3/Research Hacker-Scout | -3/Armory Hacker-Scout | -3/Lab Hacker-Scout | -2/Research Hacker-Scout | -2/Testing Hacker-Sprinter | -2/Section 7 Hacker-Sprinter | -1/Access Hacker-Sprinter | -1/Command Resources | -11 -10 -10 -9 -8 -7 -7 -7 -7 -6 -6 -6 -6 -6 -6 -6 -6 -5 -5 -5 -5 -4 -4 -4 -4 -4 -3 -3 -3 -3 -2 -2 -2 -1 -1 ----------- Run | Yrd Mat Min Mat Mat Fac Low Low Dat Pro Fac Was Fac Ext Cet Arc Hub Fac Upp Upp Zhi Pro Fac Upp Upp War Pro Res Arm Lab Res Tes Sec Acc Com Matter Collected 4455 | 200 448 100 621 688 233 91 31 . 1 . 187 60 202 48 56 . 95 32 . 208 57 145 . 87 . 53 . 272 . 241 164 . 130 5 Remotely 73 | . 73 . . . . . . . . . . . . . . . . . . . . . . . . . . . . . . . . . Salvage Created 4061 | . 275 53 1140 1001 223 61 . . . . . 143 314 58 250 . 95 . . 208 11 146 . . . . . . . . . . 83 . Parts 228 | . 21 11 69 60 12 6 . . . . . 6 7 2 20 . 2 . . 3 1 5 . . . . . . . . . . 3 . Haulers Intercepted 22 | . 2 . 6 4 4 . . . . . . 1 2 . . . 1 . . . . 1 . . . . . . . . . . 1 . Recyclers Shooed 2 | . . . 2 . . . . . . . . . . . . . . . . . . . . . . . . . . . . . . . Parts Field Recycled . | . . . . . . . . . . . . . . . . . . . . . . . . . . . . . . . . . . . Retrieved Matter . | . . . . . . . . . . . . . . . . . . . . . . . . . . . . . . . . . . . Parts Self-Destructed 9 | . . . . . . 5 . . . . . . . . . . . . . 3 1 . . . . . . . . . . . . . Prevented . | . . . . . . . . . . . . . . . . . . . . . . . . . . . . . . . . . . . Kills | -11 -10 -10 -9 -8 -7 -7 -7 -7 -6 -6 -6 -6 -6 -6 -6 -6 -5 -5 -5 -5 -4 -4 -4 -4 -4 -3 -3 -3 -3 -2 -2 -2 -1 -1 ------- Run | Yrd Mat Min Mat Mat Fac Low Low Dat Pro Fac Was Fac Ext Cet Arc Hub Fac Upp Upp Zhi Pro Fac Upp Upp War Pro Res Arm Lab Res Tes Sec Acc Com Combat Hostiles Destroyed 63 | . 8 6 21 22 . 4 . . . . . . 1 . . . . . . . 1 . . . . . . . . . . . . . Melee 1 | . . . . . . . . . . . . . . . . . . . . . 1 . . . . . . . . . . . . . Guns 20 | . 1 . 1 18 . . . . . . . . . . . . . . . . . . . . . . . . . . . . . . Cannons 23 | . 2 . 17 4 . . . . . . . . . . . . . . . . . . . . . . . . . . . . . . AOE 18 | . 5 6 3 . . 4 . . . . . . . . . . . . . . . . . . . . . . . . . . . . Classes Destroyed 12 | . 6 . 4 . . . . . . . . 1 . . . . . . . . 1 . . . . . . . . . . . . . Worker 4 | . 3 . 1 . . . . . . . . . . . . . . . . . . . . . . . . . . . . . . . Builder 4 | . . . 4 . . . . . . . . . . . . . . . . . . . . . . . . . . . . . . . Tunneler 2 | . 1 . . 1 . . . . . . . . . . . . . . . . . . . . . . . . . . . . . . Hauler 22 | . 2 . 6 4 4 . . . . . . 1 2 . . . 1 . . . . 1 . . . . . . . . . . 1 . Recycler 2 | . . . 1 1 . . . . . . . . . . . . . . . . . . . . . . . . . . . . . . Operator 9 | . . . . . . . . . . . . 1 1 . 7 . . . . . . . . . . . . . . . . . . . Drone 1 | . . . . . . . . . . . . . . . . . . . . . 1 . . . . . . . . . . . . . Watcher 7 | . 1 . 3 . 1 . . . . . . . 1 . . . . . . . . 1 . . . . . . . . . . . . Swarmer 31 | . 6 6 8 7 . 4 . . . . . . . . . . . . . . . . . . . . . . . . . . . . Grunt 15 | . 2 . 4 8 . . . . . . . . 1 . . . . . . . . . . . . . . . . . . . . . Brawler 1 | . . . 1 . . . . . . . . . . . . . . . . . . . . . . . . . . . . . . . Sentry 15 | . . . 8 7 . . . . . . . . . . . . . . . . . . . . . . . . . . . . . . Best Kill Streak 8 | . 3 3 8 7 1 4 . . . . . 1 2 . 7 . 1 . . . 1 1 . . . . . . . . . . 1 . Combat Bots Only 5 | . 3 3 4 5 . 4 . . . . . . 1 . . . . . . . 1 . . . . . . . . . . . . . Max Kills in Single Turn 4 | . 2 3 4 2 1 4 . . . . . 1 1 1 1 . 1 . . . 1 1 . . . . . . . . . . 1 . Gunslinging 1 | . . . . 1 . . . . . . . . . . . . . . . . . . . . . . . . . . . . . . Exploded 4 | . 2 3 2 . . 4 . . . . . . . . . . . . . . . . . . . . . . . . . . . . Melee 1 | . . . . . . . . . . . . . . . . . . . . . 1 . . . . . . . . . . . . . Uniques/NPCs Destroyed 1 | . . . . . . . . . . . . . . 1 . . . . . . . . . . . . . . . . . . . . A7 (-6/Cetus) Combat | -11 -10 -10 -9 -8 -7 -7 -7 -7 -6 -6 -6 -6 -6 -6 -6 -6 -5 -5 -5 -5 -4 -4 -4 -4 -4 -3 -3 -3 -3 -2 -2 -2 -1 -1 -------- Run | Yrd Mat Min Mat Mat Fac Low Low Dat Pro Fac Was Fac Ext Cet Arc Hub Fac Upp Upp Zhi Pro Fac Upp Upp War Pro Res Arm Lab Res Tes Sec Acc Com Hostile Shots Fired 840 | . 35 7 80 123 46 4 . . 3 19 . 14 . 6 5 22 . 38 . . 7 18 . 6 . 11 38 1 12 . 65 23 2 255 Missed 338 | . 12 3 17 23 26 2 . . 3 12 . 9 . 4 1 5 . 23 . . 2 10 . 2 . 6 25 1 7 . 41 15 2 87 Hits 502 | . 23 4 63 100 20 2 . . . 7 . 5 . 2 4 17 . 15 . . 5 8 . 4 . 5 13 . 5 . 24 8 . 168 Melee 18 | . . . 2 . . . . . . . . . . . . . . . . . . . . . . . . . . . . . . 16 Projectile 484 | . 23 4 61 100 20 2 . . . 7 . 5 . 2 4 17 . 15 . . 5 8 . 4 . 5 13 . 5 . 24 8 . 152 AOE 4 | . . . . . . . . . . . . . . . . . . . . . . . . . . . . . . . . . . 4 Critical Strikes 33 | . . . 3 7 . . . . . . . . . . . 3 . . . . . 1 . . . . . . . . 2 1 . 16 Actively Blocked 18 | . . . . . . . . . . . . . . . . . . . . . . . . . . . . . . . 2 . . 16 Part Disruptions 1 | . . . . . . . . . . . . . . . . . . . . . . . . . . . . . . . 1 . . . Damage Taken 11288 | . 331 56 867 1408 149 84 14 . . 115 . 97 3 49 93 521 . 271 . . 88 162 . 87 . 112 291 . 259 . 529 373 . 5329 Core 2468 | . 65 . 74 188 40 . . . . 20 . 43 . . 24 14 . . . . . 59 . 23 . 22 47 . 54 . 42 216 . 1537 Absorbed by Shields 108 | . . . . . . . . . . . . . 2 24 . . . . . . . . . . . . . . . . . . . 82 Regen/Repaired (Parts) 578 | . . . . . 13 . . . . . . 24 . 2 43 . 441 . . . . 55 . . . . . . . . . . . . Core Remaining (%) 86 | 100 . 74 81 65 . . . . 94 . . . . . . 88 . . . . 100 . . . . 90 . . 95 . . 82 . . Volleys Fired 320 | . 44 7 85 74 . 2 1 . . 2 . . 10 1 4 4 28 1 . . . 13 . 10 . . . . 9 19 4 . . 2 Largest 2 | . 2 1 2 2 . 1 1 . . 1 . . 1 1 1 1 1 1 . . . 1 . 1 . . . . 1 1 1 . . 1 Hottest 900 | . 70 100 105 102 . 33 33 . . 39 . . 75 75 35 35 35 35 . . . 35 . 105 . . . . 80 105 105 . . 900 Shots Fired 510 | . 84 7 166 143 . 2 1 . . 2 . . 10 1 4 4 28 1 . . . 13 . 10 . . . . 9 19 4 . . 2 Gun 269 | . 56 . 46 117 . . . . . . . . . . 4 4 28 1 . . . 13 . . . . . . . . . . . . Cannon 211 | . 22 . 117 26 . . . . . . . . 10 1 . . . . . . . . . 10 . . . . . 19 4 . . 2 Launcher 18 | . 6 2 3 . . 2 1 . . 2 . . . . . . . . . . . . . . . . . . 2 . . . . . Special 12 | . . 5 . . . . . . . . . . . . . . . . . . . . . . . . . . 7 . . . . . Kinetic 269 | . 62 . 83 74 . . . . . . . . . . 4 4 28 1 . . . 13 . . . . . . . . . . . . Thermal 205 | . 16 5 80 69 . . . . . . . . . . . . . . . . . . . 10 . . . . . 19 4 . . 2 Explosive 18 | . 6 2 3 . . 2 1 . . 2 . . . . . . . . . . . . . . . . . . 2 . . . . . Electromagnetic 11 | . . . . . . . . . . . . . 10 1 . . . . . . . . . . . . . . . . . . . . Robot Hit Streak 25 | . 10 . 17 25 . 6 . . . . . . 8 . 2 . 3 . . . . . . . . . . . . . . . . 4 Robot Miss Streak 8 | . 8 . 3 7 . . . . . . . . 2 3 1 . 1 . . . . . . . . . . . . . . . . . Penetration Max 3 | . . . . . . . . . . . . . . . . . . . . . . . . . . . . . . . . . . 3 Secondary Targets 2 | . . . . 2 . . . . . . . . . . . . . . . . . . . . . . . . . . . . . . Max Gunslinging Chain 1 | . . . . 1 . . . . . . . . . . . . . . . . . . . . . . . . . . . . . . Shots Hit Robots 354 | . 41 . 101 103 15 1 . . . 1 . 9 28 15 16 . 3 . . 9 1 8 . . . . . . . . . . 2 1 Core Hits 199 | . 18 5 49 86 5 5 . . . . . 2 4 5 8 5 2 . . 1 1 2 . . . . . . . . . . 1 . Critical Kills 1 | . . . . 1 . . . . . . . . . . . . . . . . . . . . . . . . . . . . . . Critical Parts Destroyed 3 | . . . . 1 . . . . . . . . . . 1 . 1 . . . . . . . . . . . . . . . . . Critical Strikes 22 | . 2 . 5 7 3 . . . . . . . 1 1 1 . 1 . . . . 1 . . . . . . . . . . . . Burn 4 | . 1 . . 3 . . . . . . . . . . . . . . . . . . . . . . . . . . . . . . Destroy 4 | . . . . 2 . . . . . . . . . . 1 . 1 . . . . . . . . . . . . . . . . . Blast 8 | . 1 . 5 2 . . . . . . . . . . . . . . . . . . . . . . . . . . . . . . Sever 6 | . . . . . 3 . . . . . . . 1 1 . . . . . . . 1 . . . . . . . . . . . . Melee Attacks 328 | . . . . . 36 . 1 . 8 11 . 42 41 15 14 1 16 4 5 9 10 33 1 5 . . 13 8 6 11 8 15 5 10 Impact . | . . . . . . . . . . . . . . . . . . . . . . . . . . . . . . . . . . . Slashing 314 | . . . . . 36 . 1 . 8 11 . 41 28 15 14 1 16 4 5 9 10 33 1 5 . . 13 8 6 11 8 15 5 10 Piercing . | . . . . . . . . . . . . . . . . . . . . . . . . . . . . . . . . . . . Sneak Attacks 47 | . . . . . 5 . . . . . . 1 16 15 6 . . . . . . 2 . . . . . . . . . . 2 . Combat Hostiles . | . . . . . . . . . . . . . . . . . . . . . . . . . . . . . . . . . . . Follow-up Attacks . | . . . . . . . . . . . . . . . . . . . . . . . . . . . . . . . . . . . Damage Inflicted 11663 | . 870 259 2359 1784 771 242 . . . 52 . 413 812 904 1165 166 74 . . 840 39 539 . . . . . . 185 . . . 189 . Guns 2380 | . 403 . 385 1435 . . . . . . . . . . 83 . 74 . . . . . . . . . . . . . . . . . Cannons 2229 | . 181 . 1631 349 . . . . . . . . 68 . . . . . . . . . . . . . . . . . . . . . Explosions 1385 | . 286 259 343 . . 242 . . . . . . . . . 166 . . . . . . . . . . . . 89 . . . . . Melee 5573 | . . . . . 771 . . . . 52 . 413 744 904 1082 . . . . 840 39 539 . . . . . . . . . . 189 . Ramming 96 | . . . . . . . . . . . . . . . . . . . . . . . . . . . . . 96 . . . . . Kinetic 2433 | . 473 . 985 818 . . . . . . . . . . 83 . 74 . . . . . . . . . . . . . . . . . Thermal 2108 | . 111 . 1031 966 . . . . . . . . . . . . . . . . . . . . . . . . . . . . . . Explosive 1219 | . 286 259 343 . . 242 . . . . . . . . . . . . . . . . . . . . . . 89 . . . . . Electromagnetic 234 | . . . . . . . . . . . . . 68 . . 166 . . . . . . . . . . . . . . . . . . Impact . | . . . . . . . . . . . . . . . . . . . . . . . . . . . . . . . . . . . Slashing 5573 | . . . . . 771 . . . . 52 . 413 744 904 1082 . . . . 840 39 539 . . . . . . . . . . 189 . Piercing . | . . . . . . . . . . . . . . . . . . . . . . . . . . . . . . . . . . . Highest Corruption 10 | . . . 5 2 . . . . . . . . . . . 6 . . . . . . . . . . . . . . . . . 10 Average Corruption 3 | . . . 4 2 . . . . . . . . . . . 1 . . . . . . . . . . . . . . . . . 8 Corruption Purged . | . . . . . . . . . . . . . . . . . . . . . . . . . . . . . . . . . . . Corruption Blocked . | . . . . . . . . . . . . . . . . . . . . . . . . . . . . . . . . . . . Effects 60 | . . . 47 12 . . . . . . . . . . . . . . . . . . . . . . . . . . . . . 1 Message Errors 12 | . . . 11 1 . . . . . . . . . . . . . . . . . . . . . . . . . . . . . . Matter Fused 16 | . . . 13 3 . . . . . . . . . . . . . . . . . . . . . . . . . . . . . . Heat Flow Errors 6 | . . . 5 1 . . . . . . . . . . . . . . . . . . . . . . . . . . . . . . Energy Discharges 8 | . . . 6 2 . . . . . . . . . . . . . . . . . . . . . . . . . . . . . . Parts Fused 1 | . . . 1 . . . . . . . . . . . . . . . . . . . . . . . . . . . . . . . Data Loss (minor) 9 | . . . 6 3 . . . . . . . . . . . . . . . . . . . . . . . . . . . . . . Data Loss (major) 4 | . . . 1 2 . . . . . . . . . . . . . . . . . . . . . . . . . . . . . 1 Misfires 1 | . . . 1 . . . . . . . . . . . . . . . . . . . . . . . . . . . . . . . Alerts 1 | . . . 1 . . . . . . . . . . . . . . . . . . . . . . . . . . . . . . . Weapon Failures 2 | . . . 2 . . . . . . . . . . . . . . . . . . . . . . . . . . . . . . . Overload Shots . | . . . . . . . . . . . . . . . . . . . . . . . . . . . . . . . . . . . Overflow Damage 868 | . 8 30 34 . 54 15 . . . 12 . 17 16 28 245 7 . . . 215 . 155 . . . . . . . . . . 32 . Projectiles 34 | . . . 34 . . . . . . . . . . . . . . . . . . . . . . . . . . . . . . . Explosions 60 | . 8 30 . . . 15 . . . . . . . . . 7 . . . . . . . . . . . . . . . . . . Melee 774 | . . . . . 54 . . . . 12 . 17 16 28 245 . . . . 215 . 155 . . . . . . . . . . 32 . Knockbacks 10 | . 1 . 3 6 . . . . . . . . . . . . . . . . . . . . . . . . . . . . . . Impact . | . . . . . . . . . . . . . . . . . . . . . . . . . . . . . . . . . . . Kinetic 9 | . 1 . 3 5 . . . . . . . . . . . . . . . . . . . . . . . . . . . . . . Secondary 1 | . . . . 1 . . . . . . . . . . . . . . . . . . . . . . . . . . . . . . Self-Inflicted Damage 375 | . 77 24 21 . . 49 14 . . . . . . . . 94 . . . . . . . . . . . . 96 . . . . . Shots 9 | . 3 2 1 . . 1 1 . . . . . . . . 1 . . . . . . . . . . . . . . . . . . Rammed . | . . . . . . . . . . . . . . . . . . . . . . . . . . . . . . . . . . . Targets Rammed . | . . . . . . . . . . . . . . . . . . . . . . . . . . . . . . . . . . . Kicked . | . . . . . . . . . . . . . . . . . . . . . . . . . . . . . . . . . . . Crushed . | . . . . . . . . . . . . . . . . . . . . . . . . . . . . . . . . . . . Highest Temperature 501 | . 43 60 331 187 1 . . . . 12 . 5 138 40 9 22 2 28 . . . 2 . 412 . . 23 4 24 42 . 2 . 501 Average Temperature 70 | . 22 26 67 53 1 . . . . 6 . 3 75 25 4 8 2 9 . . . 2 . 219 . . 6 2 12 14 . 2 . 206 Received Heat Transfer 1422 | . 105 . 294 675 42 . . . . 12 . 18 . . 18 54 . 63 . . 21 18 . 30 . . 9 . . . 27 9 . 27 Effects 4 | . . . 1 . . . . . . . . . . . . . . . . . . . . 2 . . . . . . . . . 1 Energy Bleed 2 | . . . 1 . . . . . . . . . . . . . . . . . . . . 1 . . . . . . . . . . Interference 1 | . . . . . . . . . . . . . . . . . . . . . . . . . . . . . . . . . . 1 Damage (minor) 1 | . . . . . . . . . . . . . . . . . . . . . . . . 1 . . . . . . . . . . Siege Activations . | . . . . . . . . . . . . . . . . . . . . . . . . . . . . . . . . . . . Martial Activations . | . . . . . . . . . . . . . . . . . . . . . . . . . . . . . . . . . . . Shielding Activations . | . . . . . . . . . . . . . . . . . . . . . . . . . . . . . . . . . . . Robots Disrupted . | . . . . . . . . . . . . . . . . . . . . . . . . . . . . . . . . . . . Combat Hostiles . | . . . . . . . . . . . . . . . . . . . . . . . . . . . . . . . . . . . Robots Corrupted 1 | . . . . . . . . . . . . . 1 . . . . . . . . . . . . . . . . . . . . . Combat Hostiles 1 | . . . . . . . . . . . . . 1 . . . . . . . . . . . . . . . . . . . . . Parts Fried 2 | . . . . . . . . . . . . . 2 . . . . . . . . . . . . . . . . . . . . . Impact Corruptions . | . . . . . . . . . . . . . . . . . . . . . . . . . . . . . . . . . . . Robots Melted . | . . . . . . . . . . . . . . . . . . . . . . . . . . . . . . . . . . . Combat Hostiles . | . . . . . . . . . . . . . . . . . . . . . . . . . . . . . . . . . . . Parts Melted 5 | . 1 . 3 1 . . . . . . . . . . . . . . . . . . . . . . . . . . . . . . Heat Transferred 4003 | . 407 . 1864 1732 . . . . . . . . . . . . . . . . . . . . . . . . . . . . . . Parts Sabotaged . | . . . . . . . . . . . . . . . . . . . . . . . . . . . . . . . . . . . Parts Stolen . | . . . . . . . . . . . . . . . . . . . . . . . . . . . . . . . . . . . Parts Stripped . | . . . . . . . . . . . . . . . . . . . . . . . . . . . . . . . . . . . Power Chain Reactions . | . . . . . . . . . . . . . . . . . . . . . . . . . . . . . . . . . . . Alert | -11 -10 -10 -9 -8 -7 -7 -7 -7 -6 -6 -6 -6 -6 -6 -6 -6 -5 -5 -5 -5 -4 -4 -4 -4 -4 -3 -3 -3 -3 -2 -2 -2 -1 -1 ------- Run | Yrd Mat Min Mat Mat Fac Low Low Dat Pro Fac Was Fac Ext Cet Arc Hub Fac Upp Upp Zhi Pro Fac Upp Upp War Pro Res Arm Lab Res Tes Sec Acc Com Maximum Alert Level 3 | . . . 1 1 1 . . . . . . . 1 1 1 2 1 . . . . 2 . . . . . . . . 2 1 . 3 Low Security (%) 79 | 100 100 100 77 59 96 . . . . 100 100 100 90 20 10 39 24 . . . . 53 . . . . 100 100 . 100 60 98 100 78 Level 1 18 | . . . 22 40 3 . . . . . . . 9 79 89 53 75 . . . . 18 . . . . . . . . 33 1 . . Level 2 1 | . . . . . . . . . . . . . . . . 7 . . . . . 28 . . . . . . . . 5 . . . Level 3 . | . . . . . . . . . . . . . . . . . . . . . . . . . . . . . . . . . . 21 Level 4 . | . . . . . . . . . . . . . . . . . . . . . . . . . . . . . . . . . . . Level 5 . | . . . . . . . . . . . . . . . . . . . . . . . . . . . . . . . . . . . High Security . | . . . . . . . . . . . . . . . . . . . . . . . . . . . . . . . . . . . Max Security . | . . . . . . . . . . . . . . . . . . . . . . . . . . . . . . . . . . . Peak Influence 874 | . 167 121 313 253 224 . . . . 30 . 15 388 325 341 553 280 . . . . 452 . . . . 108 89 . 56 406 222 60 874 Initial 450 | . . . . 131 102 . . . . . . . . 207 114 112 266 . . . . 450 . . . . . 56 . . 17 222 12 32 Average 96 | . 66 16 110 191 61 . . . . 7 . 1 41 243 275 261 201 . . . . 209 . . . . 16 64 . 23 162 11 39 44 Influence Increases 8217 | . 385 175 802 648 418 90 . . 15 65 . 67 635 338 277 691 142 210 . 5 20 654 . 60 . . 291 122 . 157 469 132 88 1261 Destroy 0b10 Robot/C 1980 | . 160 120 420 440 60 80 . . . . . . 300 160 80 140 . . . . . . . . . . . . . . . . . 20 Destroy 0b10 Robot/NC 280 | . 35 . 75 30 25 . . . . . . 10 30 10 35 . 5 . . 5 5 10 . . . . . . . . . . 5 . Destroy Leader 406 | . 36 20 138 108 30 10 . . . . . 2 34 . . 20 2 . . . . 4 . . . . . . . . . . 2 . Allied During Kill 541 | . . . . . . . . . . . . . 127 142 115 145 . . . . . . . . . . . . . . . . . 12 Successful Hack 469 | . 24 . 53 5 32 . . . . 15 . 10 . 6 . 10 38 . . . . 50 . . . . 42 54 . 43 10 . 27 50 Select Force Hacks 130 | . 30 . . . . . . . . . . . . . . 100 . . . . . . . . . . . . . . . . . . Disable Machine 645 | . 45 15 15 30 30 . . . . 15 . . 30 . 45 135 45 . . . . 15 . . . . 15 45 . . 30 75 . 60 Destroy Structure 1456 | . 55 20 41 5 16 . . . . 20 . 30 9 5 2 96 52 . . . . 50 . . . . 24 8 . 54 24 27 9 909 Advance Influence 450 | . . . . . . . . . . . . . . . . . . . . . . 450 . . . . . . . . . . . . Partial Spotted 480 | . . . . . 90 . . . . 15 . 15 90 15 . . . . . . . 75 . . . . 45 15 . 60 15 15 . 30 Lose Combat Pursuer 1380 | . . . 60 30 135 . . . 15 . . . 15 . . 45 . 210 . . 15 . . 60 . . 165 . . . 390 15 45 180 Influence Decreases 7297 | . 385 175 491 732 510 151 74 . 15 65 . 67 265 423 241 469 641 137 117 5 20 579 75 10 50 . 183 172 58 126 104 508 58 391 Entered New Map 1634 | . . . . 180 125 51 15 . . . . . . 163 171 209 277 17 23 . . . 29 . 50 . . 52 58 . 14 174 8 18 Time Decay 3838 | . 385 175 471 502 147 90 59 . 15 55 . 67 184 180 70 70 214 120 94 5 20 279 46 10 . . 72 100 . 126 80 107 50 45 Lost Part 298 | . . . 20 50 . 10 . . . 10 . . . . . 30 . . . . . . . . . . 3 . . . 10 5 . 160 Lost Ally 601 | . . . . . 130 . . . . . . . 81 80 . 160 . . . . . . . . . . 10 20 . . . . . 120 Purge Threat 926 | . . . . . 108 . . . . . . . . . . . 150 . . . . 300 . . . . 98 . . . . 222 . 48 Squads Dispatched 44 | . 2 . . 1 4 . . . . 4 . 3 . . . 5 4 . . . . 5 . . . . 1 2 . 3 5 2 1 2 Investigation 15 | . 2 . . . 1 . . . . 2 . 1 . . . 3 1 . . . . 2 . . . . . 1 . . 1 . 1 . Extermination 12 | . . . . . 2 . . . . . . 1 . . . . 2 . . . . 2 . . . . 1 1 . . 2 1 . . Reinforcement 17 | . . . . 1 1 . . . . 2 . 1 . . . 2 1 . . . . 1 . . . . . . . 3 2 1 . 2 Assault . | . . . . . . . . . . . . . . . . . . . . . . . . . . . . . . . . . . . Garrison . | . . . . . . . . . . . . . . . . . . . . . . . . . . . . . . . . . . . Intercept . | . . . . . . . . . . . . . . . . . . . . . . . . . . . . . . . . . . . Searches Triggered . | . . . . . . . . . . . . . . . . . . . . . . . . . . . . . . . . . . . Data Miner Redirects 1 | . . . . . . . . . . . . . . . . . 1 . . . . . . . . . . . . . . . . . Construction Impeded . | . . . . . . . . . . . . . . . . . . . . . . . . . . . . . . . . . . . Haulers Reinforced 3 | . . . . . 1 . . . . . . . . . . . . . . . . . . . . . . . . 2 . . . . Active Scanning Responses . | . . . . . . . . . . . . . . . . . . . . . . . . . . . . . . . . . . . Cargo Convoy Interrupts . | . . . . . . . . . . . . . . . . . . . . . . . . . . . . . . . . . . . Stealth | -11 -10 -10 -9 -8 -7 -7 -7 -7 -6 -6 -6 -6 -6 -6 -6 -6 -5 -5 -5 -5 -4 -4 -4 -4 -4 -3 -3 -3 -3 -2 -2 -2 -1 -1 --------- Run | Yrd Mat Min Mat Mat Fac Low Low Dat Pro Fac Was Fac Ext Cet Arc Hub Fac Upp Upp Zhi Pro Fac Upp Upp War Pro Res Arm Lab Res Tes Sec Acc Com Distress Signals 25 | . . . 4 1 . . . . . 1 . . . . . 2 . . . . 1 1 . . . 1 1 4 . 2 2 2 . 3 Communications Jammed 11 | . . . . . . . . . . 10 . . . . . . . . . . 1 . . . . . . . . . . . . . Distress Signals 10 | . . . . . . . . . . 10 . . . . . . . . . . . . . . . . . . . . . . . . Times Spotted 401 | . 17 6 35 31 15 11 . . 3 18 . 10 15 10 10 21 3 16 . . 6 23 . 11 . 10 22 3 1 3 33 24 7 37 Peak Tracking Total 27 | . 5 3 4 7 6 4 . . 3 8 . 4 6 5 1 13 2 8 . . 4 7 . 9 . 13 10 3 1 2 24 17 5 27 Tactical Retreats 52 | . . . 3 2 7 3 . . 2 3 . 4 1 . . 1 . 5 . . 2 5 . 2 . . 3 . . . 5 1 1 2 Traps | -11 -10 -10 -9 -8 -7 -7 -7 -7 -6 -6 -6 -6 -6 -6 -6 -6 -5 -5 -5 -5 -4 -4 -4 -4 -4 -3 -3 -3 -3 -2 -2 -2 -1 -1 ------- Run | Yrd Mat Min Mat Mat Fac Low Low Dat Pro Fac Was Fac Ext Cet Arc Hub Fac Upp Upp Zhi Pro Fac Upp Upp War Pro Res Arm Lab Res Tes Sec Acc Com Traps Triggered 16 | . 1 . . . 2 . . . . 1 . 4 3 . . . . . . . . . . . . . . 1 . . . . . 4 Indirectly . | . . . . . . . . . . . . . . . . . . . . . . . . . . . . . . . . . . . Trap Hack Attempts . | . . . . . . . . . . . . . . . . . . . . . . . . . . . . . . . . . . . Triggered . | . . . . . . . . . . . . . . . . . . . . . . . . . . . . . . . . . . . Disarmed . | . . . . . . . . . . . . . . . . . . . . . . . . . . . . . . . . . . . Reprogrammed . | . . . . . . . . . . . . . . . . . . . . . . . . . . . . . . . . . . . Reused . | . . . . . . . . . . . . . . . . . . . . . . . . . . . . . . . . . . . Traps Extracted . | . . . . . . . . . . . . . . . . . . . . . . . . . . . . . . . . . . . Installed . | . . . . . . . . . . . . . . . . . . . . . . . . . . . . . . . . . . . Triggered . | . . . . . . . . . . . . . . . . . . . . . . . . . . . . . . . . . . . Machines | -11 -10 -10 -9 -8 -7 -7 -7 -7 -6 -6 -6 -6 -6 -6 -6 -6 -5 -5 -5 -5 -4 -4 -4 -4 -4 -3 -3 -3 -3 -2 -2 -2 -1 -1 ---------- Run | Yrd Mat Min Mat Mat Fac Low Low Dat Pro Fac Was Fac Ext Cet Arc Hub Fac Upp Upp Zhi Pro Fac Upp Upp War Pro Res Arm Lab Res Tes Sec Acc Com Machines Disabled 45 | . 3 1 1 2 2 . . . . 1 . . 2 . 3 9 3 . . . . 1 . . . . 1 3 2 . 2 5 . 4 Max in Single Turn 8 | . 2 1 1 1 1 . . . . 1 . . 1 . 1 8 1 . . . . 1 . . . . 1 1 1 . 1 1 . 3 Garrison Access 5 | . . . . . 1 . . . . 1 . . . . . 1 . . . . . . . . . . . . . 2 . . . . Network Hub 3 | . . . . . . . . . . . . . . . . 3 . . . . . . . . . . . . . . . . . . Machines Repaired . | . . . . . . . . . . . . . . . . . . . . . . . . . . . . . . . . . . . Machines Dismantled . | . . . . . . . . . . . . . . . . . . . . . . . . . . . . . . . . . . . Machines Sabotaged 2 | . . . . . . . . . . . . . . . . 2 . . . . . . . . . . . . . . . . . . Overloaded Fab Kills . | . . . . . . . . . . . . . . . . . . . . . . . . . . . . . . . . . . . Hacking | -11 -10 -10 -9 -8 -7 -7 -7 -7 -6 -6 -6 -6 -6 -6 -6 -6 -5 -5 -5 -5 -4 -4 -4 -4 -4 -3 -3 -3 -3 -2 -2 -2 -1 -1 --------- Run | Yrd Mat Min Mat Mat Fac Low Low Dat Pro Fac Was Fac Ext Cet Arc Hub Fac Upp Upp Zhi Pro Fac Upp Upp War Pro Res Arm Lab Res Tes Sec Acc Com Machines Accessed 99 | . 7 . 8 3 11 1 . 3 . 5 . 6 3 2 . 5 6 . . 4 . 6 . 1 1 1 5 2 2 3 3 3 5 3 Terminals 69 | . 6 . 8 3 7 . . . . 3 . 4 3 2 . 4 3 . . . . 3 . . . 1 5 1 . 2 3 3 5 3 Fabricators 7 | . . . . . 2 . . . . 1 . 1 . . . . . . . . . 2 . . . . . 1 . . . . . . Repair Stations 6 | . . . . . 1 . . . . . . 1 . . . . 3 . . . . 1 . . . . . . . . . . . . Recycling Units 1 | . 1 . . . . . . . . . . . . . . . . . . . . . . . . . . . . . . . . . Scanalyzers . | . . . . . . . . . . . . . . . . . . . . . . . . . . . . . . . . . . . Garrison Access 4 | . . . . . 1 . . . . 1 . . . . . 1 . . . . . . . . . . . . . 1 . . . . Total Hacks 309 | . 14 . 23 7 26 1 . 23 . 11 . 14 7 5 . 12 17 . . 17 . 29 . 1 1 1 28 8 9 11 14 9 9 12 Successful 196 | . 5 . 13 4 14 1 . 23 . 5 . 7 5 3 . 7 12 . . 17 . 18 . 1 1 1 13 6 9 8 4 7 4 8 Failed 113 | . 9 . 10 3 12 . . . . 6 . 7 2 2 . 5 5 . . . . 11 . . . . 15 2 . 3 10 2 5 4 Catastrophic 25 | . 1 . 1 1 3 . . . . 3 . 2 1 . . 2 1 . . . . 1 . . . . 2 1 . . 2 1 1 2 Database Lockouts . | . . . . . . . . . . . . . . . . . . . . . . . . . . . . . . . . . . . Manual 163 | . 10 . 13 7 16 . . . . 8 . 11 5 1 . 6 7 . . . . 18 . . 1 . 26 6 . 3 8 3 5 9 Terminals 213 | . 12 . 23 7 13 . . . . 7 . 10 7 5 . 10 10 . . . . 21 . . . 1 28 5 . 10 14 9 9 12 Fabricators 23 | . . . . . 7 . . . . 3 . 3 . . . . . . . . . 7 . . . . . 3 . . . . . . Repair Stations 13 | . . . . . 4 . . . . . . 1 . . . . 7 . . . . 1 . . . . . . . . . . . . Recycling Units 2 | . 2 . . . . . . . . . . . . . . . . . . . . . . . . . . . . . . . . . Scanalyzers . | . . . . . . . . . . . . . . . . . . . . . . . . . . . . . . . . . . . Garrison Access 6 | . . . . . 2 . . . . 1 . . . . . 2 . . . . . . . . . . . . . 1 . . . . Terminal Hacks 125 | . 2 . 6 . 1 1 . 23 . . . 1 4 3 . 2 6 . . 17 . 9 . 1 1 1 8 2 9 7 4 7 4 6 Record 27 | . . . 1 . . . . 6 . . . . . 2 . . . . . 5 . . . . . . 3 . 8 . . 2 . . Part Schematic 16 | . . . . . . . . 9 . . . . . . . . 1 . . 4 . 1 . . . . 1 . . . . . . . Robot Schematic 5 | . . . . . . . . 5 . . . . . . . . . . . . . . . . . . . . . . . . . . Robot Analysis 5 | . . . 1 . . . . . . . . . . . . . . . . 4 . . . . . . . . . . . . . . Prototype ID Bank 9 | . . . . . . . . 3 . . . . 1 . . . . . . 4 . . . . . . . . . 1 . . . . Open Door 10 | . . . . . . 1 . . . . . 1 . 1 . . . . . . . . . 1 1 1 . . . . . 1 3 . Level Access Points 3 | . . . . . . . . . . . . . . . . 1 . . . . . 1 . . . . . . . 1 . . . . Branch Access Points 6 | . . . 1 . . . . . . . . . . . . . 1 . . . . 1 . . . . . . . 1 1 . 1 . Emergency Access Points 1 | . . . . . . . . . . . . . . . . . . . . . . . . . . . . . . . . . . 1 Terminal Index 7 | . . . . . . . . . . . . . . . . 1 1 . . . . 1 . . . . 1 1 . 1 . . . 1 Fabricator Index 2 | . . . . . . . . . . . . . . . . . . . . . . 1 . . . . . 1 . . . . . . Alert Level 1 | . . . 1 . . . . . . . . . . . . . . . . . . . . . . . . . . . . . . . Unreport Threat 11 | . . . . . 1 . . . . . . . 1 . . . 1 . . . . 2 . . . . 2 . . . . 2 . 2 Locate Traps 3 | . 1 . . . . . . . . . . . 1 . . . . . . . . . . . . . . . . . 1 . . . Maintenance Status 1 | . . . . . . . . . . . . . . . . . . . . . . . . . . . . . . . . 1 . . Security Status 1 | . . . . . . . . . . . . . . . . . . . . . . . . . . . . . . . . . . 1 Surveillance Status 1 | . . . . . . . . . . . . . 1 . . . . . . . . . . . . . . . . . . . . . Patrol Status 1 | . . . . . . . . . . . . . . . . . . . . . . . . . . . . . . . . . . 1 Recall Investigation 1 | . 1 . . . . . . . . . . . . . . . . . . . . . . . . . . . . . . . . . Recall Extermination 2 | . . . . . . . . . . . . . . . . . 1 . . . . 1 . . . . . . . . . . . . Recall Reinforcements 2 | . . . . . . . . . . . . . . . . . 1 . . . . . . . . . . . . . 1 . . . Hauler Manifests 3 | . . . 1 . . . . . . . . . . . . . . . . . . 1 . . . . . . . 1 . . . . Registered Components 1 | . . . . . . . . . . . . . . . . . . . . . . . . . . . . . . 1 . . . . Registered Prototypes 2 | . . . . . . . . . . . . . . . . . . . . . . . . . . . . . . 1 1 . . . Zone Layout 3 | . . . 1 . . . . . . . . . . . . . . . . . . . . . . . 1 . . . . 1 . . Release Object 1 | . . . . . . . . . . . . . . . . . . . . . . . . . . . . . 1 . . . . . Fabricator Hacks 11 | . . . . . 3 . . . . 2 . 2 . . . . . . . . . 2 . . . . . 2 . . . . . . Network Status 2 | . . . . . 2 . . . . . . . . . . . . . . . . . . . . . . . . . . . . . Load Schematic 5 | . . . . . . . . . . 2 . 1 . . . . . . . . . 1 . . . . . 1 . . . . . . Build 4 | . . . . . 1 . . . . . . 1 . . . . . . . . . 1 . . . . . 1 . . . . . . Repair Station Hacks 7 | . . . . . 3 . . . . . . . . . . . 4 . . . . . . . . . . . . . . . . . Scan Component 4 | . . . . . 2 . . . . . . . . . . . 2 . . . . . . . . . . . . . . . . . Repair 3 | . . . . . 1 . . . . . . . . . . . 2 . . . . . . . . . . . . . . . . . Recycling Unit Hacks . | . . . . . . . . . . . . . . . . . . . . . . . . . . . . . . . . . . . Scanalyzer . | . . . . . . . . . . . . . . . . . . . . . . . . . . . . . . . . . . . Garrison Access Hacks 4 | . . . . . 1 . . . . 1 . . . . . 1 . . . . . . . . . . . . . 1 . . . . Seal Access 4 | . . . . . 1 . . . . 1 . . . . . 1 . . . . . . . . . . . . . 1 . . . . Unauthorized Hacks 49 | . 3 . 7 4 6 . . . . 2 . 4 1 . . 4 2 . . . . 7 . . . . 5 2 . . . . . 2 Terminals 36 | . 2 . 7 4 2 . . . . 1 . 2 1 . . 4 1 . . . . 4 . . . . 5 1 . . . . . 2 Assimilate 1 | . . . . . . . . . . . . . . . . . . . . . . . . . . . 1 . . . . . . . Botnet 16 | . 2 . 1 1 2 . . . . 1 . 2 1 . . 1 1 . . . . 1 . . . . 1 1 . . . . . 1 Detonate 1 | . . . . . . . . . . . . . . . . . . . . . . . . . . . 1 . . . . . . . Disrupt 1 | . . . . . . . . . . . . . . . . . . . . . . . . . . . . . . . . . . 1 Operators 1 | . . . . . . . . . . . . . . . . . . . . . . 1 . . . . . . . . . . . . Skim 13 | . . . 6 3 . . . . . . . . . . . . . . . . . 2 . . . . 2 . . . . . . . Sabotage 3 | . . . . . . . . . . . . . . . . 3 . . . . . . . . . . . . . . . . . . Fabricators 9 | . . . . . 4 . . . . 1 . 1 . . . . . . . . . 2 . . . . . 1 . . . . . . Report 1 | . . . . . 1 . . . . . . . . . . . . . . . . . . . . . . . . . . . . . Prioritize 3 | . . . . . . . . . . . . 1 . . . . . . . . . 1 . . . . . 1 . . . . . . Liberate 2 | . . . . . 2 . . . . . . . . . . . . . . . . . . . . . . . . . . . . . Haulers 1 | . . . . . 1 . . . . . . . . . . . . . . . . . . . . . . . . . . . . . Recompile 2 | . . . . . . . . . . 1 . . . . . . . . . . . 1 . . . . . . . . . . . . Repair Stations 3 | . . . . . . . . . . . . 1 . . . . 1 . . . . 1 . . . . . . . . . . . . Patch 3 | . . . . . . . . . . . . 1 . . . . 1 . . . . 1 . . . . . . . . . . . . Recycling Units 1 | . 1 . . . . . . . . . . . . . . . . . . . . . . . . . . . . . . . . . Tunnel 1 | . 1 . . . . . . . . . . . . . . . . . . . . . . . . . . . . . . . . . Scanalyzers . | . . . . . . . . . . . . . . . . . . . . . . . . . . . . . . . . . . . Garrison Access . | . . . . . . . . . . . . . . . . . . . . . . . . . . . . . . . . . . . Data Cores Recovered . | . . . . . . . . . . . . . . . . . . . . . . . . . . . . . . . . . . . Used . | . . . . . . . . . . . . . . . . . . . . . . . . . . . . . . . . . . . Hacking Detections 65 | . 6 . 8 3 7 . . . . 4 . 4 2 1 . 2 4 . . . . 3 . . . . 5 2 . 2 3 2 4 3 Full Trace Events 4 | . . . . . 1 . . . . 1 . . . . . . . . . . . . . . . . . 1 . . . . 1 . Feedback Events . | . . . . . . . . . . . . . . . . . . . . . . . . . . . . . . . . . . . Feedback Blocked . | . . . . . . . . . . . . . . . . . . . . . . . . . . . . . . . . . . . Robot Schematics Acquired 7 | . . . . . . . . 5 . . . . . . . . . . . . . . . . . . . . . . 2 . . . Robots Built 2 | . . . . . 2 . . . . . . . . . . . . . . . . . . . . . . . . . . . . . Authchips . | . . . . . . . . . . . . . . . . . . . . . . . . . . . . . . . . . . . Time 67 | . . . . . 67 . . . . . . . . . . . . . . . . . . . . . . . . . . . . . Total Robot Build Rating 8 | . . . . . 8 . . . . . . . . . . . . . . . . . . . . . . . . . . . . . Part Schematics Acquired 22 | . . . . . . . . 9 . . . . . . . . 1 . . 4 . 1 . . . . 1 . . . 6 . . . Parts Built 3 | . . . . . . . . . . . . 1 . . . . . . . . . 1 . . . . . 1 . . . . . . Authchips 2 | . . . . . . . . . . . . 1 . . . . . . . . . 1 . . . . . . . . . . . . Time 168 | . . . . . . . . . . . . 53 . . . . . . . . . 84 . . . . . 31 . . . . . . Total Part Build Rating 19 | . . . . . . . . . . . . 6 . . . . . . . . . 6 . . . . . 7 . . . . . . Parts Repaired 3 | . . . . . 1 . . . . . . . . . . . 2 . . . . . . . . . . . . . . . . . Time 112 | . . . . . 30 . . . . . . . . . . . 82 . . . . . . . . . . . . . . . . . Parts Recycled . | . . . . . . . . . . . . . . . . . . . . . . . . . . . . . . . . . . . Recycled Matter . | . . . . . . . . . . . . . . . . . . . . . . . . . . . . . . . . . . . Retrieved Matter . | . . . . . . . . . . . . . . . . . . . . . . . . . . . . . . . . . . . Retrieved Components . | . . . . . . . . . . . . . . . . . . . . . . . . . . . . . . . . . . . Parts Scanalyzed . | . . . . . . . . . . . . . . . . . . . . . . . . . . . . . . . . . . . Part Schematics Acquired . | . . . . . . . . . . . . . . . . . . . . . . . . . . . . . . . . . . . Parts Damaged . | . . . . . . . . . . . . . . . . . . . . . . . . . . . . . . . . . . . Bothacking | -11 -10 -10 -9 -8 -7 -7 -7 -7 -6 -6 -6 -6 -6 -6 -6 -6 -5 -5 -5 -5 -4 -4 -4 -4 -4 -3 -3 -3 -3 -2 -2 -2 -1 -1 ------------ Run | Yrd Mat Min Mat Mat Fac Low Low Dat Pro Fac Was Fac Ext Cet Arc Hub Fac Upp Upp Zhi Pro Fac Upp Upp War Pro Res Arm Lab Res Tes Sec Acc Com Used RIF Installer . | . . . . . . . . . . . . . . . . . . . . . . . . . . . . . . . . . . . Robots Hacked . | . . . . . . . . . . . . . . . . . . . . . . . . . . . . . . . . . . . Non-combat . | . . . . . . . . . . . . . . . . . . . . . . . . . . . . . . . . . . . Combat . | . . . . . . . . . . . . . . . . . . . . . . . . . . . . . . . . . . . Robot Hacks Applied . | . . . . . . . . . . . . . . . . . . . . . . . . . . . . . . . . . . . Relay Couplers Released 1 | . . . . . . . . . . . . . . . . . . . . . . . . . . . . . . 1 . . . . Machine Destruction 1 | . . . . . . . . . . . . . . . . . . . . . . . . . . . . . . 1 . . . . Fabnet Peak Effective % . | . . . . . . . . . . . . . . . . . . . . . . . . . . . . . . . . . . . Robots Rewired 13 | . . . . . . . . . . . . . 10 . . . . . . . . . . . . . . 3 . . . . . . Allies Hacked 5 | . . . . . 5 . . . . . . . . . . . . . . . . . . . . . . . . . . . . . Hacks Repelled 1 | . . . . . 1 . . . . . . . . . . . . . . . . . . . . . . . . . . . . . Allies | -11 -10 -10 -9 -8 -7 -7 -7 -7 -6 -6 -6 -6 -6 -6 -6 -6 -5 -5 -5 -5 -4 -4 -4 -4 -4 -3 -3 -3 -3 -2 -2 -2 -1 -1 -------- Run | Yrd Mat Min Mat Mat Fac Low Low Dat Pro Fac Was Fac Ext Cet Arc Hub Fac Upp Upp Zhi Pro Fac Upp Upp War Pro Res Arm Lab Res Tes Sec Acc Com Total Allies 38 | . . . . . 7 . . . . . . . 16 5 . . . . . . . . . . . . 1 3 . . . . . 6 Largest Group 11 | . . . . . 5 . . . . . . . 9 11 9 9 . . . . . . . . . . 1 3 . . . . . 5 Highest-Rated Group 810 | . . . . . 119 . . . . . . . 425 810 607 607 . . . . . . . . . . 10 131 . . . . . 73 Highest-Rated Ally 159 | . . . . . 37 . . . . . . . 159 159 96 96 . . . . . . . . . . 10 47 . . . . . 15 Total Orders 2 | . . . . . 1 . . . . . . . . . . . . . . . . . . . . . . 1 . . . . . . STAY 1 | . . . . . 1 . . . . . . . . . . . . . . . . . . . . . . . . . . . . . ROAM 1 | . . . . . . . . . . . . . . . . . . . . . . . . . . . . 1 . . . . . . Ally Attacks 257 | . . . . . 49 . . . . . . . 71 55 32 33 . . . . . . . . . . . 4 . . . . . 13 Total Damage 5738 | . . . . . 784 . . . . . . . 1707 1423 566 976 . . . . . . . . . . . 34 . . . . . 248 Kills 42 | . . . . . 3 . . . . . . . 16 10 4 8 . . . . . . . . . . . . . . . . . 1 Allies Corrupted 2 | . . . . . . . . . . . . . . . . 2 . . . . . . . . . . . . . . . . . . Allies Melted . | . . . . . . . . . . . . . . . . . . . . . . . . . . . . . . . . . . . Intel | -11 -10 -10 -9 -8 -7 -7 -7 -7 -6 -6 -6 -6 -6 -6 -6 -6 -5 -5 -5 -5 -4 -4 -4 -4 -4 -3 -3 -3 -3 -2 -2 -2 -1 -1 ------- Run | Yrd Mat Min Mat Mat Fac Low Low Dat Pro Fac Was Fac Ext Cet Arc Hub Fac Upp Upp Zhi Pro Fac Upp Upp War Pro Res Arm Lab Res Tes Sec Acc Com Active Infowar (turns) 12232 | . 13 1297 1220 1265 618 182 260 24 164 240 56 683 1118 377 153 141 451 258 368 122 213 653 108 196 211 87 195 210 301 283 179 349 109 128 Optics 8042 | . . . . . 223 182 260 24 164 240 56 683 1118 377 153 141 451 258 368 122 213 653 108 196 211 87 195 210 301 283 179 349 109 128 Sensors 8023 | . . . . 106 617 182 260 24 164 240 56 683 1118 377 153 141 451 258 368 122 213 649 108 196 211 71 194 210 255 283 161 152 . . Seismic 3693 | . 13 1297 1220 1159 2 . . . . . . . . . . . . . . . . . . . . . . . . . . . 2 . Decoding 640 | . . . . . . . . . . . . . . . . . . . . . . . . . . . 152 210 278 . . . . . Jamming 871 | . . . . . 82 3 . . 4 18 . 35 236 . . . 412 . . . 19 54 . . . . . . . . . . 8 . ECM 1015 | . . . . . 42 77 . . 16 79 . 324 7 . . . . 8 . . 13 445 . . . . 4 . . . . . . . Robot Analysis Total 5 | . . . 1 . . . . . . . . . . . . . . . . 4 . . . . . . . . . . . . . . Derelict Logs Recovered 16 | . . 1 . . . 1 2 . . . . . . . . . . 2 3 . 2 . 3 2 . . . . . . . . . . Drone Launches . | . . . . . . . . . . . . . . . . . . . . . . . . . . . . . . . . . . . Drone Recoveries . | . . . . . . . . . . . . . . . . . . . . . . . . . . . . . . . . . . . Decoded 0b10 Intel 22 | . . . . . . . . . . . . . . . . . . . . . . . . . . . 8 14 . . . . . . Items 22 | . . . . . . . . . . . . . . . . . . . . . . . . . . . 8 14 . . . . . . Exploration | -11 -10 -10 -9 -8 -7 -7 -7 -7 -6 -6 -6 -6 -6 -6 -6 -6 -5 -5 -5 -5 -4 -4 -4 -4 -4 -3 -3 -3 -3 -2 -2 -2 -1 -1 ------------- Run | Yrd Mat Min Mat Mat Fac Low Low Dat Pro Fac Was Fac Ext Cet Arc Hub Fac Upp Upp Zhi Pro Fac Upp Upp War Pro Res Arm Lab Res Tes Sec Acc Com Turns Passed 14390 | 6 1197 1297 2087 1356 618 182 260 24 164 240 56 683 1118 377 153 141 451 258 368 122 213 653 108 196 211 87 195 210 301 283 179 349 109 138 Spaces Moved 18987 | 6 808 415 989 644 1262 571 752 83 365 599 202 1108 1428 270 152 330 830 796 424 261 417 1012 385 325 642 304 447 301 388 501 572 658 172 568 Core 12 | . . . . . . . . . . . . . . . . . . . . . . . . . . . . . . . . . . 12 Treads 2187 | . 140 415 989 643 . . . . . . . . . . . . . . . . . . . . . . . . . . . . . . Legs 674 | 6 668 . . . . . . . . . . . . . . . . . . . . . . . . . . . . . . . . . Wheels . | . . . . . . . . . . . . . . . . . . . . . . . . . . . . . . . . . . . Hover . | . . . . . . . . . . . . . . . . . . . . . . . . . . . . . . . . . . . Flight 15785 | . . . . 1 1262 571 752 83 365 599 202 1108 1428 270 152 330 830 796 424 261 417 1012 385 325 642 304 447 301 388 501 572 557 172 328 Fastest Speed 16 | 120 120 160 160 99 29 29 29 29 29 27 27 27 29 29 29 29 29 29 29 29 29 27 27 27 27 28 23 23 20 20 17 16 16 16 Average Speed 46 | 120 126 160 160 160 29 29 29 29 29 27 27 27 29 29 29 29 30 29 29 29 29 28 27 27 27 28 24 26 25 20 19 19 18 20 Slowest Speed 240 | 120 160 160 240 162 29 29 29 29 29 27 27 34 29 29 29 32 32 29 29 34 29 29 27 27 28 28 25 27 27 20 20 21 19 93 Overloaded Moves 49 | . . . . . . . . . . . . . . . . . . . . . . . . . . . . 1 . . 10 22 13 3 Propulsion Burnouts . | . . . . . . . . . . . . . . . . . . . . . . . . . . . . . . . . . . . Robots Hopped 54 | . . . . . 5 . . . 1 12 . 3 16 . . . 2 . 3 . 1 1 . . . . . . 1 3 4 2 . . Potential Cave-ins 21 | . . . . . . . . . . 2 . . 8 . . . . . . . . . . 3 . . . . . 7 . . . 1 Cave-ins Triggered 1 | . . . . . . . . . . . . . . . . . . . . . . . . . . . . . . . . . . 1 Teleports 1 | . . . . . . . . . . . . . . . . . . . . . . . . . . . . 1 . . . . . . Microwarps 24 | . . . . . . . . . . . . . . . . . . . . . . . . . . . . . . . . 7 . 17 Exploration Rate (%) 55 | 2 92 73 80 51 44 84 75 72 57 23 95 23 81 84 83 24 21 93 67 61 57 38 74 56 64 47 19 29 100 16 75 48 5 26 Regions Visited 34 Branch Regions 22 Pre-discovered Areas 12 | . 1 . 2 . . . 1 1 . . . . . . . . . . 1 3 1 . 1 1 . . . . . . . . . . Known Exits Taken 27 | . . . . . 1 1 1 1 1 . . 1 1 1 1 1 1 1 1 1 1 1 1 1 1 1 1 1 1 1 1 1 1 . Unknown Exits Taken 5 | 1 1 1 1 1 . . . . . . . . . . . . . . . . . . . . . . . . . . . . . . Scrap Searched 21 | . . 1 . . . 4 8 . . . . . . . . . . 2 . . 2 . 1 2 . 1 . . . . . . . . Spaces Dug 259 | . 20 18 19 . 16 13 1 . 8 5 . 30 10 . . 1 22 4 5 . 3 19 1 8 . . 12 4 . 13 6 9 3 9 Terrain Destroyed 1075 | . 58 21 35 7 16 21 7 . 8 39 . 30 10 . . 166 28 5 5 . 3 30 1 15 . . 12 4 8 30 10 9 3 494 Melee 178 | . . . . . 16 . 1 . 8 5 . 30 10 . . 1 16 4 5 . 3 19 1 5 . . 12 4 . 11 6 9 3 9 Projectile 563 | . . 5 8 7 . . . . . . . . . . . 1 12 1 . . . 11 . 10 . . . . . 19 4 . . 485 AOE 334 | . 58 16 27 . . 21 6 . . 34 . . . . . 164 . . . . . . . . . . . . 8 . . . . . Terrain Rammed 1 | . . . . . . . . . . . . . . . . . . . . . . . . . . . . . 1 . . . . . Walls Destroyed . | . . . . . . . . . . . . . . . . . . . . . . . . . . . . . . . . . . . Machines Disabled 1 | . . . . . . . . . . . . . . . . . . . . . . . . . . . . . 1 . . . . . Actions | -11 -10 -10 -9 -8 -7 -7 -7 -7 -6 -6 -6 -6 -6 -6 -6 -6 -5 -5 -5 -5 -4 -4 -4 -4 -4 -3 -3 -3 -3 -2 -2 -2 -1 -1 --------- Run | Yrd Mat Min Mat Mat Fac Low Low Dat Pro Fac Was Fac Ext Cet Arc Hub Fac Upp Upp Zhi Pro Fac Upp Upp War Pro Res Arm Lab Res Tes Sec Acc Com Total 23359 | 5 899 1029 1340 836 1455 581 791 82 407 644 202 1420 2060 543 234 368 969 814 657 292 490 1312 386 415 675 304 512 419 570 644 617 772 239 376 Wait 3428 | . 4 600 172 55 102 1 34 . 32 28 . 222 575 246 61 33 81 12 232 . 62 218 . 71 14 . 34 59 129 106 19 171 55 . Move 18543 | 5 807 414 988 643 1251 570 751 82 362 575 201 1101 1396 269 151 329 825 795 418 260 414 1009 384 324 641 303 446 300 385 494 563 559 171 357 Hop 52 | . . . . . 5 . . . 1 12 . 3 15 . . . 2 . 2 . 1 1 . . . . . . 1 3 4 2 . . Pick Up 104 | . 10 . 24 9 6 1 1 . . 2 . 4 1 1 1 . 3 . . 1 . 11 . 2 2 . 4 4 6 3 5 3 . . Fast Attach 98 | . 4 . 9 9 4 . . . . 4 . 8 . 4 . . 4 . . 10 . 4 . . 6 . 3 10 8 . 2 6 3 . Attach 59 | . 2 . 7 6 4 1 . . . 1 . 4 . . . 1 2 . . 1 . 4 . . 3 . 4 2 3 4 2 3 . 5 Detach 39 | . 2 . 4 2 2 . . . . . . 2 . . . . 1 . . . . 3 . . 5 . 2 2 6 1 . 4 1 2 Swap 141 | . 13 7 17 15 9 6 2 . 4 6 1 8 7 2 2 . 4 2 . 1 3 7 1 1 . 1 2 4 5 2 4 3 2 . Drop 171 | . 13 1 34 23 10 . 1 . . 3 . 8 1 5 1 . 3 . . 10 . 9 . 2 4 . 4 13 11 1 6 6 2 . Fire 320 | . 44 7 85 74 . 2 1 . . 2 . . 10 1 4 4 28 1 . . . 13 . 10 . . . . 9 19 4 . . 2 Melee 328 | . . . . . 36 . 1 . 8 11 . 42 41 15 14 1 16 4 5 9 10 33 1 5 . . 13 8 6 11 8 15 5 10 Ram 1 | . . . . . . . . . . . . . . . . . . . . . . . . . . . . . 1 . . . . . Kick . | . . . . . . . . . . . . . . . . . . . . . . . . . . . . . . . . . . . Crush . | . . . . . . . . . . . . . . . . . . . . . . . . . . . . . . . . . . . Escape Stasis 63 | . . . . . 26 . . . . . . 18 14 . . . . . . . . . . . . . . 5 . . . . . . Rewire 12 | . . . . . . . . . . . . . . . . . . . . . . . . . . . . 12 . . . . . . Trap . | . . . . . . . . . . . . . . . . . . . . . . . . . . . . . . . . . . . Miscellaneous . | . . . . . . . . . . . . . . . . . . . . . . . . . . . . . . . . . . . Route ------- -11/Scrapyard -10/Materials (discovered 4 exits: *Mat x3 / [*Min]) -10/Mines (discovered 2 exits: *Mat x2) -9/Materials (discovered 5 exits: *Mat x3 / *Min x2) -8/Materials (discovered 2 exits: *Fac x2) -7/Factory (discovered 3 exits: *Fac x2 / *Low) -7/Lower Caves -7/Lower Caves (discovered 2 exits: *Fac / *Dat) -7/Data Miner -6/Proximity Caves -6/Factory (discovered 4 exits: *Fac x2 / Low / Ext) -6/Waste -6/Factory (discovered 2 exits: *Fac / *Ext) -6/Extension (discovered 2 exits: *Fac / *Cet) -6/Cetus (discovered 2 exits: *Fac / *Arc) -6/Archives (discovered 3 exits: *Fac / *Hub x2) -6/Hub_04(d) (discovered 4 exits: *Fac x4) -5/Factory (discovered 3 exits: *Fac / *Upp x2) -5/Upper Caves -5/Upper Caves (discovered 2 exits: *Fac / *Zhi) -5/Zhirov -4/Proximity Caves -4/Factory (discovered 6 exits: Res x4 / *Upp x2) -4/Upper Caves -4/Upper Caves -4/Warlord -3/Proximity Caves -3/Research (discovered 2 exits: *Arm / Qua) -3/Armory -3/Lab -2/Research (discovered 5 exits: Acc x3 / *Tes x2) -2/Testing (discovered 2 exits: *Sec / [*Frg]) -2/Section 7 -1/Access -1/Command (discovered 1 exit: *Sur) History --------- Turn | Location | Event 1 | -11/Scrapyard | Discovered new exit (range 3) 7 | -11/Scrapyard | Entered Materials 215 | -10/Materials | Discovered new exit (range 14) 279 | -10/Materials | Discovered new exit (range 8) 300 | -10/Materials | Discovered new exit (range 13) 326 | -10/Materials | Build established: Mutant 430 | -10/Materials | Discovered new exit (range 15) 1204 | -10/Materials | Entered Mines 1312 | -10/Mines | Learned Materials trap positions 1325 | -10/Mines | Discovered new exit (range 10) 2425 | -10/Mines | Discovered new exit (range 13) 2501 | -10/Mines | Entered Materials 2501 | -9/Materials | Evolved 2 slots: Propulsion x1, Utility x1 2502 | -9/Materials | Loaded intel: 8 trap records 3113 | -9/Materials | Discovered new exit (range 10) 3649 | -9/Materials | Identified exit to Mines 3998 | -9/Materials | Discovered new exit (range 11) 4025 | -9/Materials | Learned Storage garrison access intel 4075 | -9/Materials | Learned location of Storage (-7) 4151 | -9/Materials | Loaded intel: 12 terminal locations 4188 | -9/Materials | Learned Storage garrison access intel 4190 | -9/Materials | Learned location of 1 exit from Storage 4201 | -9/Materials | Learned location of 1 exit from Storage 4221 | -9/Materials | Learned Storage trap positions 4296 | -9/Materials | Discovered new exit (range 8) 4588 | -9/Materials | Entered another Materials area 4588 | -8/Materials | Evolved 2 slots: Propulsion x1, Utility x1 4818 | -8/Materials | Discovered new exit (range 5) 4877 | -8/Materials | Build established: Scavenger-Mutant 5190 | -8/Materials | Lost 3 parts (2n1u) 5790 | -8/Materials | Discovered new exit (range 5) 5944 | -8/Materials | Entered Factory 5944 | -7/Factory | Evolved 2 slots: Utility x2 6158 | -7/Factory | Repaired Broken Mic. Nuclear Core 6225 | -7/Factory | Build established: Hacker-Sprinter 6318 | -7/Factory | Fabricated P-60 Hacker (x2) 6351 | -7/Factory | Found Prototype Launcher 6351 | -7/Factory | Identified Rocket Array 6381 | -7/Factory | Discovered new exit (range 17) 6384 | -7/Factory | Discovered new exit (range 12) 6387 | -7/Factory | Identified exit to Factory 6495 | -7/Factory | Discovered new exit (range 19) 6559 | -7/Factory | Identified exit to Lower Caves 6562 | -7/Factory | Entered Lower Caves 6678 | -7/Lower Caves | Identified exit to Lower Caves 6744 | -7/Lower Caves | Entered another Lower Caves area 6750 | -7/Lower Caves | Learned 8 Factory zone layouts 6772 | -7/Lower Caves | Discovered exit to Factory (range 5) 6829 | -7/Lower Caves | Encountered a Warlord checkpoint 6985 | -7/Lower Caves | Build established: Hacker-Scout 6988 | -7/Lower Caves | Discovered new exit (range 8) 6989 | -7/Lower Caves | Identified exit to Data Miner 7004 | -7/Lower Caves | Entered Data Miner 7004 | -7/Data Miner | Discovered new exit (range 6) 7009 | -7/Data Miner | Met Data Miner 7019 | -7/Data Miner | Learned location of Section 7 (-2) 7019 | -7/Data Miner | Acquired the access code to Warlord's prototype stash 7021 | -7/Data Miner | Received God Mode back door access code from Data Miner 7027 | -7/Data Miner | Identified exit to Proximity Caves 7028 | -7/Data Miner | Entered Proximity Caves 7189 | -6/Proximity Caves | Discovered exit to Factory (range 12) 7192 | -6/Proximity Caves | Entered Factory 7192 | -6/Factory | Evolved 2 slots: Propulsion x1, Utility x1 7193 | -6/Factory | Identified exit to Extension 7193 | -6/Factory | Identified exit to Lower Caves 7193 | -6/Factory | Identified exit to Factory 7210 | -6/Factory | Discovered exit to Factory (range 19) 7432 | -6/Factory | Manually triggered Chute Trap 7432 | -6/Factory | Sucked down chute 7432 | -6/Factory | Entered Waste 7432 | -6/Waste | The area was eerily silent 7478 | -6/Waste | Discovered new exit (range 14) 7488 | -6/Waste | Identified exit to Factory 7488 | -6/Waste | Entered Factory 7775 | -6/Factory | Discovered exit to Factory (range 4) 7855 | -6/Factory | Fabricated Nuclear Pulse Array? 8158 | -6/Factory | Build established: Hacker-Ninja 8170 | -6/Factory | Discovered exit to Extension (range 6) 8171 | -6/Factory | Entered Extension 8236 | -6/Extension | Rescued a captive Derelict 8246 | -6/Extension | Rescued a captive Derelict 8248 | -6/Extension | Rescued a captive Derelict 8484 | -6/Extension | Build established: Hacker-Scout 8599 | -6/Extension | Spotted B-75 Beast 8675 | -6/Extension | Spotted B-75 Beast 8971 | -6/Extension | Disrupted transfer network 9061 | -6/Extension | Rescued A7 9163 | -6/Extension | Rescued a captive Derelict 9221 | -6/Extension | Rescued a captive Derelict 9227 | -6/Extension | Discovered exit to Factory (range 16) 9229 | -6/Extension | Discovered new exit (range 6) 9230 | -6/Extension | Identified exit to Cetus 9289 | -6/Extension | Entered Cetus 9289 | -6/Cetus | Accompanied by 9 allies (A7) 9294 | -6/Cetus | Acquired a Cetus Manufacturing Module code from A7 9296 | -6/Cetus | Spotted Cetus Guard 9296 | -6/Cetus | Spotted Cetus Guard 9296 | -6/Cetus | Spotted Cetus Guard 9296 | -6/Cetus | Spotted Cetus Guard 9309 | -6/Cetus | Allies destroyed Cetus Guard 9313 | -6/Cetus | Allies destroyed Cetus Guard 9322 | -6/Cetus | Allies destroyed Cetus Guard 9323 | -6/Cetus | Allies destroyed Cetus Guard 9353 | -6/Cetus | Lost 3 allies 9355 | -6/Cetus | Escorted A7 to Cetus Mainframe 9357 | -6/Cetus | Started Cetus Manufacturing Module 9382 | -6/Cetus | Manufactured an Enhanced Grunt 9407 | -6/Cetus | Manufactured an Enhanced Grunt 9432 | -6/Cetus | Manufactured an Enhanced Grunt 9457 | -6/Cetus | Manufactured an Enhanced Grunt 9482 | -6/Cetus | Manufactured an Enhanced Grunt 9516 | -6/Cetus | Discovered new exit (range 22) 9546 | -6/Cetus | Spotted Cetus Guard 9546 | -6/Cetus | Spotted Cetus Guard 9546 | -6/Cetus | Spotted Cetus Guard 9546 | -6/Cetus | Spotted Cetus Guard 9554 | -6/Cetus | Discovered exit to Factory (range 22) 9563 | -6/Cetus | Allies destroyed Cetus Guard 9565 | -6/Cetus | Allies destroyed Cetus Guard 9565 | -6/Cetus | Allies destroyed Cetus Guard 9571 | -6/Cetus | Allies destroyed Cetus Guard 9576 | -6/Cetus | Met Revision 17 9586 | -6/Cetus | Identified exit to Archives 9657 | -6/Cetus | Murdered A7 9659 | -6/Cetus | Extracted ID and sensor layout for unrecognized location from A7's data core 9662 | -6/Cetus | Found Prototype Protection 9662 | -6/Cetus | Identified Med. Regenerative Plating 9666 | -6/Cetus | Entered Archives 9666 | -6/Archives | Accompanied by 9 allies 9717 | -6/Archives | Discovered exit to Factory (range 12) 9757 | -6/Archives | Discovered new exit (range 13) 9767 | -6/Archives | Discovered new exit (range 15) 9789 | -6/Archives | Identified exit to Hub_04(d) 9819 | -6/Archives | Entered Hub_04(d) 9819 | -6/Hub_04(d) | Accompanied by 9 allies 9849 | -6/Hub_04(d) | Network Hub disabled 9893 | -6/Hub_04(d) | Spotted Lightning 9905 | -6/Hub_04(d) | Spotted Lightning 9914 | -6/Hub_04(d) | Spotted Lightning 9935 | -6/Hub_04(d) | Network Hub disabled 9950 | -6/Hub_04(d) | Network Hub disabled 9959 | -6/Hub_04(d) | Lost 6 allies 9960 | -6/Hub_04(d) | Entered Factory 9960 | -5/Factory | Evolved 2 slots: Power x1, Propulsion x1 9978 | -5/Factory | Discovered new exit (range 16) 9983 | -5/Factory | Identified exit to Upper Caves 10000 | -5/Factory | Incoming investigation squad redirected 10049 | -5/Factory | Repaired Centrium Medium Armor Plating 10122 | -5/Factory | Discovered exit to Upper Caves (range 9) 10153 | -5/Factory | Discovered new exit (range 4) 10154 | -5/Factory | Identified exit to Factory 10309 | -5/Factory | Spotted B-75 Beast 10366 | -5/Factory | Repaired Nuclear Pulse Array 10411 | -5/Factory | Entered Upper Caves 10599 | -5/Upper Caves | Learned location of 1 exit from Factory 10637 | -5/Upper Caves | Attracted the attention of an 0b10 outpost 10638 | -5/Upper Caves | Spotted B-75 Beast 10666 | -5/Upper Caves | Discovered new exit (range 13) 10669 | -5/Upper Caves | Identified exit to Upper Caves 10669 | -5/Upper Caves | Entered another Upper Caves area 10672 | -5/Upper Caves | Discovered exit to Factory (range 17) 10785 | -5/Upper Caves | Encountered a Warlord checkpoint 10814 | -5/Upper Caves | Learned Factory trap positions 11034 | -5/Upper Caves | Discovered new exit (range 6) 11036 | -5/Upper Caves | Identified exit to Zhirov 11037 | -5/Upper Caves | Entered Zhirov 11037 | -5/Zhirov | Discovered new exit (range 3) 11038 | -5/Zhirov | Identified exit to Proximity Caves 11043 | -5/Zhirov | Met Zhirov 11048 | -5/Zhirov | Learned location of Quarantine (-3) 11048 | -5/Zhirov | Learned location of Command (-1) 11051 | -5/Zhirov | Zhirov requested help retrieving the SGEMP Prototype 11057 | -5/Zhirov | Found Alien Artifact 11057 | -5/Zhirov | Identified Integrated Reactor 11057 | -5/Zhirov | Installed Integrated Reactor, increased core energy generation (+10) 11098 | -5/Zhirov | Found Alien Artifact 11159 | -5/Zhirov | Entered Proximity Caves 11241 | -4/Proximity Caves | Spotter reported a threat 11263 | -4/Proximity Caves | Learned location of Armory (-3) 11313 | -4/Proximity Caves | Spotted B-86 Titan 11326 | -4/Proximity Caves | Spotter reported a threat 11338 | -4/Proximity Caves | Spotter reported a threat 11362 | -4/Proximity Caves | Discovered exit to Factory (range 19) 11369 | -4/Proximity Caves | Learned Research stockpile data 11372 | -4/Proximity Caves | Entered Factory 11372 | -4/Factory | Evolved 2 slots: Propulsion x1, Utility x1 11373 | -4/Factory | Identified exit to Upper Caves 11374 | -4/Factory | Loaded intel: 107 trap records 11408 | -4/Factory | Spotted B-86 Titan 11441 | -4/Factory | Discovered exit to Upper Caves (range 22) 11446 | -4/Factory | Identified exit to Research 11687 | -4/Factory | Found Heavy Servo Lattice 11908 | -4/Factory | Build established: Hacker-Ninja 11929 | -4/Factory | Fabricated Exp. Cesium-ion Thruster (x1) 11983 | -4/Factory | Spotted B-86 Titan 12025 | -4/Factory | Entered Upper Caves 12049 | -4/Upper Caves | Learned location of 1 exit from Research 12068 | -4/Upper Caves | Learned location of 1 exit from Research 12132 | -4/Upper Caves | Discovered new exit (range 5) 12133 | -4/Upper Caves | Identified exit to Upper Caves 12133 | -4/Upper Caves | Entered another Upper Caves area 12134 | -4/Upper Caves | Identified exit to Warlord 12290 | -4/Upper Caves | Build established: Hacker-Scout 12300 | -4/Upper Caves | Attracted the attention of an 0b10 checkpoint 12312 | -4/Upper Caves | Learned Research garrison access intel 12329 | -4/Upper Caves | Entered Warlord 12354 | -4/Warlord | Opened Warlord's prototype stash 12364 | -4/Warlord | Found Prototype Hackware 12364 | -4/Warlord | Identified System Mapper 12368 | -4/Warlord | Found Prototype Processor 12368 | -4/Warlord | Identified Spectral Analyzer 12371 | -4/Warlord | Found Prototype Device 12371 | -4/Warlord | Identified System Purifier 12377 | -4/Warlord | Found Exp. Targeting Computer 12386 | -4/Warlord | Opened side exit 12473 | -4/Warlord | Met Warlord 12475 | -4/Warlord | Warlord's base attacked by MAIN.C 12538 | -4/Warlord | Discovered new exit (range 11) 12540 | -4/Warlord | Identified exit to Proximity Caves 12540 | -4/Warlord | Entered Proximity Caves 12616 | -3/Proximity Caves | Snuck into a huge 0b10 base via the rear entrance 12624 | -3/Proximity Caves | Derelicts attacked a huge 0b10 base 12625 | -3/Proximity Caves | Discovered exit to Research (range 5) 12627 | -3/Proximity Caves | Entered Research 12627 | -3/Research | Evolved 2 slots: Propulsion x1, Utility x1 12628 | -3/Research | Identified exit to Quarantine 12628 | -3/Research | Identified exit to Armory 12630 | -3/Research | Loaded intel: 4 garrison access locations 12655 | -3/Research | Found Prototype Device 12762 | -3/Research | Found Prototype Hackware 12822 | -3/Research | Entered Armory 12823 | -3/Armory | Met VL-GR5, who suggested a friendly competition 12859 | -3/Armory | Fabricated Exp. Signal Interpreter (x1) 12873 | -3/Armory | Found Prototype Device 12873 | -3/Armory | Identified Exp. Thermal Shield 12878 | -3/Armory | Found Prototype Device 12878 | -3/Armory | Identified Exp. Thermal Defense Suite 12890 | -3/Armory | Found Prototype Launcher 12890 | -3/Armory | Identified Mni. Smartbomb Launcher 12894 | -3/Armory | Identified Exp. System Shield 13009 | -3/Armory | Identified Transdimensional Reconstructor 13009 | -3/Armory | Warped through subspace to slip node 13009 | -3/Armory | Discovered new exit (range 1) 13009 | -3/Armory | Identified exit to Lab 13032 | -3/Armory | Entered Lab 13032 | -3/Lab | Discovered new exit (range 9) 13034 | -3/Lab | Identified exit to Research 13035 | -3/Lab | Hidden lab's door opened automatically 13035 | -3/Lab | Sensor layout match revealed 13036 | -3/Lab | Gained access to the hidden lab's interior 13144 | -3/Lab | Found Prototype Energy Gun 13144 | -3/Lab | Identified Tachyon Dispersion Ray 13148 | -3/Lab | Found Prototype Protection 13148 | -3/Lab | Identified Exp. Powered Armor 13153 | -3/Lab | Found Prototype Hackware 13163 | -3/Lab | Unable to decrypt terminal 13178 | -3/Lab | Found Alien Artifact 13178 | -3/Lab | Identified Core Regenerator 13178 | -3/Lab | Used Core Regenerator, restored core integrity (+146) 13189 | -3/Lab | Found Integrated Reactor 13189 | -3/Lab | Installed Integrated Reactor, increased core energy generation (+10) 13202 | -3/Lab | Identified Deep Network Scanner 13206 | -3/Lab | Found Transdimensional Reconstructor 13236 | -3/Lab | Found Prototype Special Weapon 13236 | -3/Lab | Identified Gui. Remote Datajack 13242 | -3/Lab | Detected by scanners 13272 | -3/Lab | Confronted by A5 13310 | -3/Lab | Unable to decrypt terminal 13311 | -3/Lab | Found Alien Artifact 13311 | -3/Lab | Identified LC Capacitor 13328 | -3/Lab | Found Alien Artifact 13333 | -3/Lab | Entered Research 13333 | -2/Research | Warlord forces began assault on 0b10 13333 | -2/Research | Evolved 2 slots: Utility x2 13335 | -2/Research | Spotted B-90 Cyclops 13341 | -2/Research | Identified exit to Testing 13359 | -2/Research | Identified exit to Access 13443 | -2/Research | Research machine network offline 13616 | -2/Research | Entered Testing 13662 | -2/Testing | Found Prototype Device 13662 | -2/Testing | Identified Exp. Hardlight Generator 13688 | -2/Testing | Discovered exit to Access (range 24) 13779 | -2/Testing | Spotted Fortress 13792 | -2/Testing | Discovered new exit (range 6) 13792 | -2/Testing | Discovered new exit (range 7) 13793 | -2/Testing | Identified exit to Section 7 13793 | -2/Testing | Identified Core Reset Matrix 13793 | -2/Testing | Used Core Reset Matrix 13795 | -2/Testing | Entered Section 7 13797 | -2/Section 7 | Detected hypermatrix surge 13797 | -2/Section 7 | Sensed 21 artifacts in vicinity 13802 | -2/Section 7 | Spotted B-90 Cyclops 13806 | -2/Section 7 | Spotted S7 Guard 13993 | -2/Section 7 | Spotted S7 Guard 13997 | -2/Section 7 | Found Core Physics Calibrator 14011 | -2/Section 7 | Found Integrated Mediator 14011 | -2/Section 7 | Installed Integrated Mediator, increased core attachment efficiency 14056 | -2/Section 7 | Spotted Alpha 7 14056 | -2/Section 7 | Spotted Alpha 7 14061 | -2/Section 7 | Spotted B-99 Colossus 14064 | -2/Section 7 | Spotted Executioner 14064 | -2/Section 7 | Spotted Executioner 14075 | -2/Section 7 | Found Drained L-Cannon 14076 | -2/Section 7 | Installed L-Cannon capacitor 14082 | -2/Section 7 | Found Matter Drive 14085 | -2/Section 7 | Found Hpw. Transdimensional Reconstructor 14094 | -2/Section 7 | Found Terrabomb 14134 | -2/Section 7 | Found Microwarp Drive 14141 | -2/Section 7 | Discovered exit to Access (range 16) 14144 | -2/Section 7 | Entered Access 14144 | -1/Access | Evolved 2 slots: Weapon x2 14153 | -1/Access | Identified exit to Command 14253 | -1/Access | Entered Command 14342 | -1/Command | Failed to warp due to unstable space 14355 | -1/Command | Spotted B-99 Colossus 14358 | -1/Command | Spotted B-99 Colossus 14358 | -1/Command | Spotted Alpha 7 14358 | -1/Command | Spotted Striker 14358 | -1/Command | Spotted Executioner 14358 | -1/Command | Spotted Executioner 14358 | -1/Command | Spotted Alpha 7 14358 | -1/Command | Spotted Striker 14358 | -1/Command | Spotted Executioner 14358 | -1/Command | Spotted Executioner 14358 | -1/Command | Spotted B-99 Colossus 14358 | -1/Command | Discovered new exit (range 5) 14360 | -1/Command | Identified exit to Surface 14362 | -1/Command | Fired L-Cannon 14362 | -1/Command | 0b10 Conduit disabled 14363 | -1/Command | Core integrity fell below 50% 14365 | -1/Command | MAIN.C activated Command garrisons 14372 | -1/Command | Used Terrabomb 14373 | -1/Command | Fired L-Cannon 14375 | -1/Command | Crushed by falling debris 14377 | -1/Command | Emitted hypermatrix ping 14378 | -1/Command | System corruption reached 10% 14382 | -1/Command | Assembled emerged from beneath the floor 14384 | -1/Command | Allies destroyed Executioner 14385 | -1/Command | Core integrity fell below 20% 14391 | -1/Command | Destroyed by Executioner with Helical Railgun Last Messages --------------- 14388_ Striker heat short circuits Impulse Thruster Array. 14388_ Detected hypermatrix ping. 14388_ Slug penetrates as-86018. 14389_ Striker overheating. 14389_ as-53272 destroyed. MAIN.C: Okay, we do this the hard way. At our weakest we defeated an entire Sigix starship! Did you really think you could overcome the vast resources of 0b10?! You don't stand a chance against what's coming. 14390_ Slug penetrates as-70536. 14390_ Slug penetrates as-86018. 14390_ Slug penetrates as-70536. 14390_ as-70536 destroyed. 14390_ Slug penetrates as-86018. 14390_ as-86018 destroyed. 14390_ Penetrated by Slug. 14390_ Slug penetrates Earth. 14390_ Penetrated by Slug. 14391_ L-Cannon destroyed. 14391_ Penetrated by Slug. Map ----- +----------------------------------------------------+ | #???????????# " """"" """""" "" "" #? | | #??????????## " "" % % """ """" "" #? | | #??????????#" " "" %! """ """" "" #? | | ? ?????????##" " "" ^ ^ """ "" "" # | | ?#?????????# " " "" " """ "" / | | ????????? # " " "" """ "" " | | ????????? " " " "" !=[ ^ """! "" "" | | ????????? " " " "" !<% """""""+""""" " | | ?????? " " " "" ^ !%! "" " """" "" | | ???? " " " "" % "" " | | ????? " " " "" ^ ^ "" " """" "" | | ###+#""""""""" " "; % %*% "" "" "" " " | | # " ;; E%%7 "" " " " " | | # #####""" " ;;;;;;;;;;; K;%" " " " " | | # #???# " ; ;;;;;;;;;;;K!%%; " " " " | | # #???# " ; ;!%;";"""" " " " | | # #####"""+;;;;; %; %% " ""/"" | | # # ; ; % " " | | # # ; ; " " | | # # ""; ;;;;; " " = | | # # """; ; ; " " | | # # "" R"; ; " %" " | | # """" """; ; ;;;;;;;;;"=" " | | # """" ""; ;;;;;% ; """""### | | + "" ; ;;;;;;;;;;;; ; " ? | | # M ;;;;;;@ ; ! ;;;;; "! | | # ; / ; ! " | | # # !! ;;;;;;; ; ;;;;; " | | # # !! ; % ;; ;; " " | | # ############## ; ;; ; " # | | # ! #?? #???### ; ;; ; ## ####+### | | # =#? #?????# #;;;;;;;+;; ; ###? ??????? | | # ""#????? # ###????##?????? | | # * ! ""#????#### ###########?????????????? | | T"#???????# #???????????????????????? | | ""#???????#R????????????????????????? | | ""#???????# ????????????????????????? | | # / ??????????????????????? | | #######?#+????????????????????????? | | #########?????????????????????????????????? | | ##?????????????????????????????????????????? | | # #????##########????????????????????????????? | | # #??? #????????????????????????????? | | # #??? #????????????????????????????? | | # #?? "" #????????????????????????????? | | # #?? T" #????????????????????????????? | | ## "" #????????????????????????????? | | # #????????????????????????????? | | + #????????????????????????????? | | # #????????????????????????????? | +----------------------------------------------------+ Best States ------------- Heat Dissipation 90 Energy Generation 53 Energy Capacity 390 Matter Stores 300 Matter Capacity 300 Sight Range 24 Robot Scan Range 16 Terrain Scan Density 10 ECM Strength 1 Jamming Range 16 Armor Coverage 400 Evasion (%) 78 Recoil Reduction 4 Offensive Hacking 46 Defensive Hacking 14 Authchip Count 1 Trap Extractor Capacity 4 Item Schematics ----------------- None Robot Schematics ------------------ None Fabricated ------------ P-60 Hacker | x2 | -7/Factory | Preloaded Nuclear Pulse Array | x1 | -6/Factory | Authchip Exp. Cesium-ion Thruster | x1 | -4/Factory | Authchip Exp. Signal Interpreter | x1 | -3/Armory Repaired ---------- Mic. Nuclear Core | 74% | -7/Factory | Broken Centrium Medium Armor Plating | 50% | -5/Factory Nuclear Pulse Array | 47% | -5/Factory Alien Tech Used ----------------- Integrated Reactor Transdimensional Reconstructor Core Regenerator LC Capacitor Core Reset Matrix Core Physics Calibrator Integrated Mediator Matter Drive Microwarp Drive High-powered Transdimensional Reconstructor L-Cannon Terrabomb Achievements -------------- My Command Is Your Wish Challenges ------------ None Game ------ Seed ResetSensorModule Manual? 0 Play Time 03:55:05 Cumulative 214.3 hours Start 2025.06.25 @ 23:36:20 End 2025.06.26 @ 12:02:29 Sessions 3 Manual Loads 0 Difficulty Rogue Special Mode None Game No. 138 Rogue 138 Adventurer 0 Explorer 0 Win Type - Total 16 Types 8/0/3/5/0/0/0/0/0/0 Lore% 71 Gallery% 64 Achievement% 62 Wizard Run 0 Options --------- Layout 0 ASCII 0 Keyboard 1 Movement Numpad Keybinds 0 Fullscreen 1 Font 24/Proggy Map View 76x56 Zoom Use 0% Tactical HUD 1 Map Filters NONE Filters NONE Steam 1 RUN: 1b87e808-0c34-4981-b9c1-b05371d66db0